Body Name,Body,Service division categorisation,Expense Type,Date paid,Transaction Reference,Net,Supplier Name,Redacted/Excluded
East Lindsey District Council,http://statistics.data.gov.uk/id/local-authority/32UC,Leisure Operations,Professional & Contractors Fees,04/04/13,IJ00020559,18013.00,WOODHALL SPA PARISH COUNCIL, 
East Lindsey District Council,http://statistics.data.gov.uk/id/local-authority/32UC,Information Technology,Telephones,04/04/13,IJ00020563,1200.00,VODAFONE CORPORATE LIMITED, 
East Lindsey District Council,http://statistics.data.gov.uk/id/local-authority/32UC,Leisure Operations,Grants and Contributions to Outside Bodies- No Service Recei,04/04/13,IJ00020560,8500.00,ALFORD SPORTS HALL, 
East Lindsey District Council,http://statistics.data.gov.uk/id/local-authority/32UC,Neighbourhood Services,Professional & Contractors Fees,04/04/13,IJ00020589,4047.46,PHS GROUP PLC, 
East Lindsey District Council,http://statistics.data.gov.uk/id/local-authority/32UC,Theatre Manager,Materials and Consumables,04/04/13,IJ00020564,286.99,PHS GROUP PLC, 
East Lindsey District Council,http://statistics.data.gov.uk/id/local-authority/32UC,TL Property,Materials and Consumables,04/04/13,IJ00020564,44.72,PHS GROUP PLC, 
East Lindsey District Council,http://statistics.data.gov.uk/id/local-authority/32UC,TL Property,Materials and Consumables,04/04/13,IJ00020564,24.00,PHS GROUP PLC, 
East Lindsey District Council,http://statistics.data.gov.uk/id/local-authority/32UC,TL Property,Materials and Consumables,04/04/13,IJ00020564,9.60,PHS GROUP PLC, 
East Lindsey District Council,http://statistics.data.gov.uk/id/local-authority/32UC,TL Property,Materials and Consumables,04/04/13,IJ00020564,73.52,PHS GROUP PLC, 
East Lindsey District Council,http://statistics.data.gov.uk/id/local-authority/32UC,TL Property,Materials and Consumables,04/04/13,IJ00020564,14.40,PHS GROUP PLC, 
East Lindsey District Council,http://statistics.data.gov.uk/id/local-authority/32UC,Leisure Operations,Materials and Consumables,04/04/13,IJ00020564,8.00,PHS GROUP PLC, 
East Lindsey District Council,http://statistics.data.gov.uk/id/local-authority/32UC,Leisure Operations,Materials and Consumables,04/04/13,IJ00020564,4.80,PHS GROUP PLC, 
East Lindsey District Council,http://statistics.data.gov.uk/id/local-authority/32UC,Leisure Operations,Materials and Consumables,04/04/13,IJ00020564,118.77,PHS GROUP PLC, 
East Lindsey District Council,http://statistics.data.gov.uk/id/local-authority/32UC,Leisure Operations,Materials and Consumables,04/04/13,IJ00020564,256.18,PHS GROUP PLC, 
East Lindsey District Council,http://statistics.data.gov.uk/id/local-authority/32UC,TL Property,Materials and Consumables,04/04/13,IJ00020564,124.50,PHS GROUP PLC, 
East Lindsey District Council,http://statistics.data.gov.uk/id/local-authority/32UC,TL Property,Materials and Consumables,04/04/13,IJ00020564,60.65,PHS GROUP PLC, 
East Lindsey District Council,http://statistics.data.gov.uk/id/local-authority/32UC,Economic & Tourism,Materials and Consumables,04/04/13,IJ00020564,132.60,PHS GROUP PLC, 
East Lindsey District Council,http://statistics.data.gov.uk/id/local-authority/32UC,Economic & Tourism,Materials and Consumables,04/04/13,IJ00020564,72.00,PHS GROUP PLC, 
East Lindsey District Council,http://statistics.data.gov.uk/id/local-authority/32UC,Economic & Tourism,Materials and Consumables,04/04/13,IJ00020564,278.97,PHS GROUP PLC, 
East Lindsey District Council,http://statistics.data.gov.uk/id/local-authority/32UC,Leisure Operations,Cleaning Contract,04/04/13,IJ00020564,271.79,PHS GROUP PLC, 
East Lindsey District Council,http://statistics.data.gov.uk/id/local-authority/32UC,TL Property,Materials and Consumables,04/04/13,IJ00020564,152.58,PHS GROUP PLC, 
East Lindsey District Council,http://statistics.data.gov.uk/id/local-authority/32UC,Leisure Operations,Cleaning Contract,04/04/13,IJ00020564,2100.65,PHS GROUP PLC, 
East Lindsey District Council,http://statistics.data.gov.uk/id/local-authority/32UC,Economic & Tourism,Grants and Contributions to Outside Bodies- No Service Recei,04/04/13,IJ00020537,881.25,LINCOLNSHIRE AGRICULTURAL SOCIETY, 
East Lindsey District Council,http://statistics.data.gov.uk/id/local-authority/32UC,TL Property,Interest payable and Similar Charges,04/04/13,IJ00020612,1950.00,LINCOLNSHIRE ECONOMIC ACTION PARTNERSHIP, 
East Lindsey District Council,http://statistics.data.gov.uk/id/local-authority/32UC,Information Technology,Computer Software Licence Costs,04/04/13,IJ00020535,553.00,CROWN COMPUTING LIMITED, 
East Lindsey District Council,http://statistics.data.gov.uk/id/local-authority/32UC,Information Technology,Computer Software Licence Costs,04/04/13,IJ00020553,553.00,CROWN COMPUTING LIMITED, 
East Lindsey District Council,http://statistics.data.gov.uk/id/local-authority/32UC,Neighbourhood Services,Materials and Consumables,04/04/13,IJ00020579,643.20,RIGBY TAYLOR LIMITED, 
East Lindsey District Council,http://statistics.data.gov.uk/id/local-authority/32UC,Information Technology,Computer Software Licence Costs,04/04/13,IJ00020533,588.57,ORCHARD INFORMATION SYSTEMS LIMITED, 
East Lindsey District Council,http://statistics.data.gov.uk/id/local-authority/32UC,Corporate Management,Postages,04/04/13,IJ00020605,9000.00,NEOPOST LTD, 
East Lindsey District Council,http://statistics.data.gov.uk/id/local-authority/32UC,Hsg Advice & Homelessness TL,Gas,04/04/13,IJ00020608,628.43,EDF ENERGY 1 LIMITED, 
East Lindsey District Council,http://statistics.data.gov.uk/id/local-authority/32UC,Leisure Operations,Purchase Of Goods For Resale,04/04/13,IJ00020581,29.78,DEE BEE, 
East Lindsey District Council,http://statistics.data.gov.uk/id/local-authority/32UC,Leisure Operations,Purchase Of Goods For Resale,04/04/13,IJ00020581,684.59,DEE BEE, 
East Lindsey District Council,http://statistics.data.gov.uk/id/local-authority/32UC,Theatre Manager,Advertising - Events,04/04/13,IJ00020596,1687.00,PCF, 
East Lindsey District Council,http://statistics.data.gov.uk/id/local-authority/32UC,Environment Team Leader,Professional & Contractors Fees,04/04/13,IJ00020627,900.00,PELL PLANT HIRE LTD, 
East Lindsey District Council,http://statistics.data.gov.uk/id/local-authority/32UC,Environment Team Leader,Professional & Contractors Fees,04/04/13,IJ00020628,1450.00,PELL PLANT HIRE LTD, 
East Lindsey District Council,http://statistics.data.gov.uk/id/local-authority/32UC,Environment Team Leader,Professional & Contractors Fees,04/04/13,IJ00020629,600.00,PELL PLANT HIRE LTD, 
East Lindsey District Council,http://statistics.data.gov.uk/id/local-authority/32UC,Information Technology,Computer Software Licence Costs,04/04/13,IJ00020565,686.00,AXIAL SYSTEMS LTD, 
East Lindsey District Council,http://statistics.data.gov.uk/id/local-authority/32UC,Information Technology,Computer Software Licence Costs,04/04/13,IJ00020565,1085.00,AXIAL SYSTEMS LTD, 
East Lindsey District Council,http://statistics.data.gov.uk/id/local-authority/32UC,Information Technology,Computer Hardware Maintenance,04/04/13,IJ00020565,492.00,AXIAL SYSTEMS LTD, 
East Lindsey District Council,http://statistics.data.gov.uk/id/local-authority/32UC,Information Technology,Internet Broadband Payments,04/04/13,IJ00020561,741.75,MULTIDATA (EUROPE), 
East Lindsey District Council,http://statistics.data.gov.uk/id/local-authority/32UC,Hsg Private Sector TL,Other Income,04/04/13,IJ00020601,-438.42,RODDEN & COOPER, 
East Lindsey District Council,http://statistics.data.gov.uk/id/local-authority/32UC,Hsg Private Sector TL,Grants and Contributions to Outside Bodies- No Service Recei,04/04/13,IJ00020601,4910.33,RODDEN & COOPER, 
East Lindsey District Council,http://statistics.data.gov.uk/id/local-authority/32UC,Development Control,Agency Staff,04/04/13,IJ00020585,5963.46,LGS LIMITED, 
East Lindsey District Council,http://statistics.data.gov.uk/id/local-authority/32UC,Neighbourhood Services,Agency Staff,04/04/13,IJ00020529,652.77,THE WORKSHOP (WISBECH) LIMITED, 
East Lindsey District Council,http://statistics.data.gov.uk/id/local-authority/32UC,Neighbourhood Services,Agency Staff,04/04/13,IJ00020529,652.76,THE WORKSHOP (WISBECH) LIMITED, 
East Lindsey District Council,http://statistics.data.gov.uk/id/local-authority/32UC,Capital WIP,Grants and Contributions to Outside Bodies- No Service Recei,04/04/13,IJ00020295,12427.67,WOODHALL SPA PARISH COUNCIL, 
East Lindsey District Council,http://statistics.data.gov.uk/id/local-authority/32UC,Economic & Tourism,Other Miscellaneous Expenses,04/04/13,IJ00020514,4800.00,NEW MIND INTERNET CONSULTANCY LTD, 
East Lindsey District Council,http://statistics.data.gov.uk/id/local-authority/32UC,Economic & Tourism,Other Miscellaneous Expenses,04/04/13,IJ00020577,960.00,NEW MIND INTERNET CONSULTANCY LTD, 
East Lindsey District Council,http://statistics.data.gov.uk/id/local-authority/32UC,Economic & Tourism,Other Miscellaneous Expenses,04/04/13,IJ00020517,574.90,ARTAVIA ADVERTISING, 
East Lindsey District Council,http://statistics.data.gov.uk/id/local-authority/32UC,Economic & Tourism,Other Miscellaneous Expenses,04/04/13,IJ00020517,0.52,ARTAVIA ADVERTISING, 
East Lindsey District Council,http://statistics.data.gov.uk/id/local-authority/32UC,Economic & Tourism,Other Miscellaneous Expenses,04/04/13,IJ00020518,2125.00,ARTAVIA ADVERTISING, 
East Lindsey District Council,http://statistics.data.gov.uk/id/local-authority/32UC,Economic & Tourism,Other Miscellaneous Expenses,04/04/13,IJ00020518,2.13,ARTAVIA ADVERTISING, 
East Lindsey District Council,http://statistics.data.gov.uk/id/local-authority/32UC,Economic & Tourism,Other Miscellaneous Expenses,04/04/13,IJ00020539,270.00,EAST LINCS RURAL TRAINING, 
East Lindsey District Council,http://statistics.data.gov.uk/id/local-authority/32UC,Economic & Tourism,Other Miscellaneous Expenses,04/04/13,IJ00020539,254.10,EAST LINCS RURAL TRAINING, 
East Lindsey District Council,http://statistics.data.gov.uk/id/local-authority/32UC,Economic & Tourism,Other Miscellaneous Expenses,04/04/13,IJ00020543,510.00,EAST LINCS RURAL TRAINING, 
East Lindsey District Council,http://statistics.data.gov.uk/id/local-authority/32UC,Economic & Tourism,Other Miscellaneous Expenses,04/04/13,IJ00020520,7864.29,CARRIER DIRECT LIMITED, 
East Lindsey District Council,http://statistics.data.gov.uk/id/local-authority/32UC,Waste Services Manager,Maintenance,04/04/13,IJ00020575,664.97,MAY GURNEY FLEET & PASSENGER SERVICES LTD, 
East Lindsey District Council,http://statistics.data.gov.uk/id/local-authority/32UC,Cultural & Related Services,Professional & Contractors Fees,04/04/13,IJ00020525,8500.00,RED DOG FILM CIC, 
East Lindsey District Council,http://statistics.data.gov.uk/id/local-authority/32UC,Economic & Tourism,Other Miscellaneous Expenses,04/04/13,IJ00020547,53810.00,J E SPENCE & SON LTD, 
East Lindsey District Council,http://statistics.data.gov.uk/id/local-authority/32UC,Cultural & Related Services,Staff Training Expenses,04/04/13,IJ00020526,697.63,THE GOLF HOTEL, 
East Lindsey District Council,http://statistics.data.gov.uk/id/local-authority/32UC,Hsg Private Sector TL,Grants and Contributions to Outside Bodies- No Service Recei,04/04/13,IJ00020602,5000.00,B.C. Winn Building and Roofing, 
East Lindsey District Council,http://statistics.data.gov.uk/id/local-authority/32UC,Waste Services Manager,Tyres,05/04/13,IJ00020566,564.64,B A BUSH & SON LIMITED, 
East Lindsey District Council,http://statistics.data.gov.uk/id/local-authority/32UC,Waste Services Manager,Tyres,05/04/13,IJ00020630,555.00,B A BUSH & SON LIMITED, 
East Lindsey District Council,http://statistics.data.gov.uk/id/local-authority/32UC,Waste Services Manager,Tyres,05/04/13,IJ00020633,805.63,B A BUSH & SON LIMITED, 
East Lindsey District Council,http://statistics.data.gov.uk/id/local-authority/32UC,Theatre Manager,Advertising - Events,05/04/13,IJ00020714,1097.92,MORTONS PRINT LIMITED, 
East Lindsey District Council,http://statistics.data.gov.uk/id/local-authority/32UC,Theatre Manager,Postages,05/04/13,IJ00020714,2000.00,MORTONS PRINT LIMITED, 
East Lindsey District Council,http://statistics.data.gov.uk/id/local-authority/32UC,Theatre Manager,Advertising - Events,05/04/13,IJ00020716,1013.02,F W CUPIT PRINTERS LIMITED, 
East Lindsey District Council,http://statistics.data.gov.uk/id/local-authority/32UC,Theatre Manager,Postages,05/04/13,IJ00020721,600.00,PITNEY BOWES LTD, 
East Lindsey District Council,http://statistics.data.gov.uk/id/local-authority/32UC,Theatre Manager,Performers and Entertainers Fees,05/04/13,IJ00020715,3235.72,ORIGINAL ENTERTAINMENT PROGRAMMING LTD, 
East Lindsey District Council,http://statistics.data.gov.uk/id/local-authority/32UC,Theatre Manager,Performers and Entertainers Fees,05/04/13,IJ00020715,-300.00,ORIGINAL ENTERTAINMENT PROGRAMMING LTD, 
East Lindsey District Council,http://statistics.data.gov.uk/id/local-authority/32UC,Theatre Manager,Performers and Entertainers Fees,05/04/13,IJ00020717,2109.92,SWEENEY ENTERTAINMENTS, 
East Lindsey District Council,http://statistics.data.gov.uk/id/local-authority/32UC,Theatre Manager,Performers and Entertainers Fees,05/04/13,IJ00020717,-390.00,SWEENEY ENTERTAINMENTS, 
East Lindsey District Council,http://statistics.data.gov.uk/id/local-authority/32UC,Development Control,Professional & Contractors Fees,05/04/13,IJ00020642,2240.00,J Malkinson and V Malkinson, 
East Lindsey District Council,http://statistics.data.gov.uk/id/local-authority/32UC,Information Technology,Telephones,11/04/13,IJ00020907,2312.63,BT PLC, 
East Lindsey District Council,http://statistics.data.gov.uk/id/local-authority/32UC,Leisure Operations,Other agencies,11/04/13,IJ00020706,4568.36,COMPETITION LINE (UK) LTD, 
East Lindsey District Council,http://statistics.data.gov.uk/id/local-authority/32UC,Leisure Operations,Other agencies,11/04/13,IJ00020707,6341.96,COMPETITION LINE (UK) LTD, 
East Lindsey District Council,http://statistics.data.gov.uk/id/local-authority/32UC,Economic & Tourism,Buildings Maintenance - Responsive,11/04/13,IJ00020819,2355.00,LINCS PUMPS & PIPELINES LTD, 
East Lindsey District Council,http://statistics.data.gov.uk/id/local-authority/32UC,"Performance, Governance & Commissioning",Stationery,11/04/13,IJ00020760,1838.98,SHAW & SONS LTD, 
East Lindsey District Council,http://statistics.data.gov.uk/id/local-authority/32UC,Waste Services Manager,Telephones,11/04/13,IJ00020881,89.63,VODAFONE CORPORATE LIMITED, 
East Lindsey District Council,http://statistics.data.gov.uk/id/local-authority/32UC,Communications Manager,Telephones,11/04/13,IJ00020881,28.54,VODAFONE CORPORATE LIMITED, 
East Lindsey District Council,http://statistics.data.gov.uk/id/local-authority/32UC,Theatre Manager,Telephones,11/04/13,IJ00020881,12.15,VODAFONE CORPORATE LIMITED, 
East Lindsey District Council,http://statistics.data.gov.uk/id/local-authority/32UC,Theatre Manager,Telephones,11/04/13,IJ00020881,28.50,VODAFONE CORPORATE LIMITED, 
East Lindsey District Council,http://statistics.data.gov.uk/id/local-authority/32UC,Development Control,Telephones,11/04/13,IJ00020881,10.50,VODAFONE CORPORATE LIMITED, 
East Lindsey District Council,http://statistics.data.gov.uk/id/local-authority/32UC,Enforcement Team Leader,Telephones,11/04/13,IJ00020881,15.52,VODAFONE CORPORATE LIMITED, 
East Lindsey District Council,http://statistics.data.gov.uk/id/local-authority/32UC,Enforcement Team Leader,Telephones,11/04/13,IJ00020881,15.24,VODAFONE CORPORATE LIMITED, 
East Lindsey District Council,http://statistics.data.gov.uk/id/local-authority/32UC,Enforcement Team Leader,Telephones,11/04/13,IJ00020881,25.94,VODAFONE CORPORATE LIMITED, 
East Lindsey District Council,http://statistics.data.gov.uk/id/local-authority/32UC,Building Control,Telephones,11/04/13,IJ00020881,3.00,VODAFONE CORPORATE LIMITED, 
East Lindsey District Council,http://statistics.data.gov.uk/id/local-authority/32UC,Building Control,Telephones,11/04/13,IJ00020881,9.50,VODAFONE CORPORATE LIMITED, 
East Lindsey District Council,http://statistics.data.gov.uk/id/local-authority/32UC,Hsg Private Sector TL,Telephones,11/04/13,IJ00020881,3.49,VODAFONE CORPORATE LIMITED, 
East Lindsey District Council,http://statistics.data.gov.uk/id/local-authority/32UC,Enforcement Team Leader,Telephones,11/04/13,IJ00020881,70.40,VODAFONE CORPORATE LIMITED, 
East Lindsey District Council,http://statistics.data.gov.uk/id/local-authority/32UC,Cultural & Related Services,Telephones,11/04/13,IJ00020881,29.96,VODAFONE CORPORATE LIMITED, 
East Lindsey District Council,http://statistics.data.gov.uk/id/local-authority/32UC,Hsg Advice & Homelessness TL,Telephones,11/04/13,IJ00020881,12.32,VODAFONE CORPORATE LIMITED, 
East Lindsey District Council,http://statistics.data.gov.uk/id/local-authority/32UC,Housing Support TL,Telephones,11/04/13,IJ00020881,306.01,VODAFONE CORPORATE LIMITED, 
East Lindsey District Council,http://statistics.data.gov.uk/id/local-authority/32UC,Housing Support TL,Telephones,11/04/13,IJ00020881,1.50,VODAFONE CORPORATE LIMITED, 
East Lindsey District Council,http://statistics.data.gov.uk/id/local-authority/32UC,Hsg Private Sector TL,Telephones,11/04/13,IJ00020881,32.27,VODAFONE CORPORATE LIMITED, 
East Lindsey District Council,http://statistics.data.gov.uk/id/local-authority/32UC,Hsg Private Sector TL,Telephones,11/04/13,IJ00020881,1.50,VODAFONE CORPORATE LIMITED, 
East Lindsey District Council,http://statistics.data.gov.uk/id/local-authority/32UC,Hsg Private Sector TL,Telephones,11/04/13,IJ00020881,13.38,VODAFONE CORPORATE LIMITED, 
East Lindsey District Council,http://statistics.data.gov.uk/id/local-authority/32UC,Hsg Advice & Homelessness TL,Telephones,11/04/13,IJ00020881,21.42,VODAFONE CORPORATE LIMITED, 
East Lindsey District Council,http://statistics.data.gov.uk/id/local-authority/32UC,Waste Services Manager,Telephones,11/04/13,IJ00020881,48.13,VODAFONE CORPORATE LIMITED, 
East Lindsey District Council,http://statistics.data.gov.uk/id/local-authority/32UC,Corporate Accounting,Telephones,11/04/13,IJ00020881,17.58,VODAFONE CORPORATE LIMITED, 
East Lindsey District Council,http://statistics.data.gov.uk/id/local-authority/32UC,Building Control,Telephones,11/04/13,IJ00020881,220.69,VODAFONE CORPORATE LIMITED, 
East Lindsey District Council,http://statistics.data.gov.uk/id/local-authority/32UC,Housing Support TL,Telephones,11/04/13,IJ00020881,160.26,VODAFONE CORPORATE LIMITED, 
East Lindsey District Council,http://statistics.data.gov.uk/id/local-authority/32UC,Economic & Tourism,Telephones,11/04/13,IJ00020881,2.00,VODAFONE CORPORATE LIMITED, 
East Lindsey District Council,http://statistics.data.gov.uk/id/local-authority/32UC,Corporate Management,Telephones,11/04/13,IJ00020881,5.73,VODAFONE CORPORATE LIMITED, 
East Lindsey District Council,http://statistics.data.gov.uk/id/local-authority/32UC,Corporate Management,Telephones,11/04/13,IJ00020881,7.81,VODAFONE CORPORATE LIMITED, 
East Lindsey District Council,http://statistics.data.gov.uk/id/local-authority/32UC,Corporate Management,Telephones,11/04/13,IJ00020881,9.00,VODAFONE CORPORATE LIMITED, 
East Lindsey District Council,http://statistics.data.gov.uk/id/local-authority/32UC,Corporate Management,Telephones,11/04/13,IJ00020881,12.11,VODAFONE CORPORATE LIMITED, 
East Lindsey District Council,http://statistics.data.gov.uk/id/local-authority/32UC,Corporate Management,Telephones,11/04/13,IJ00020881,9.01,VODAFONE CORPORATE LIMITED, 
East Lindsey District Council,http://statistics.data.gov.uk/id/local-authority/32UC,Corporate Management,Telephones,11/04/13,IJ00020881,11.28,VODAFONE CORPORATE LIMITED, 
East Lindsey District Council,http://statistics.data.gov.uk/id/local-authority/32UC,Commercial Team Leader,Telephones,11/04/13,IJ00020881,93.18,VODAFONE CORPORATE LIMITED, 
East Lindsey District Council,http://statistics.data.gov.uk/id/local-authority/32UC,Leisure Operations,Telephones,11/04/13,IJ00020881,2.31,VODAFONE CORPORATE LIMITED, 
East Lindsey District Council,http://statistics.data.gov.uk/id/local-authority/32UC,Leisure Operations,Telephones,11/04/13,IJ00020881,10.54,VODAFONE CORPORATE LIMITED, 
East Lindsey District Council,http://statistics.data.gov.uk/id/local-authority/32UC,Leisure Operations,Telephones,11/04/13,IJ00020881,20.42,VODAFONE CORPORATE LIMITED, 
East Lindsey District Council,http://statistics.data.gov.uk/id/local-authority/32UC,Leisure Operations,Telephones,11/04/13,IJ00020881,6.15,VODAFONE CORPORATE LIMITED, 
East Lindsey District Council,http://statistics.data.gov.uk/id/local-authority/32UC,Neighbourhood Services,Telephones,11/04/13,IJ00020881,187.78,VODAFONE CORPORATE LIMITED, 
East Lindsey District Council,http://statistics.data.gov.uk/id/local-authority/32UC,TL Property,Telephones,11/04/13,IJ00020881,19.10,VODAFONE CORPORATE LIMITED, 
East Lindsey District Council,http://statistics.data.gov.uk/id/local-authority/32UC,TL Property,Telephones,11/04/13,IJ00020881,6.85,VODAFONE CORPORATE LIMITED, 
East Lindsey District Council,http://statistics.data.gov.uk/id/local-authority/32UC,TL Property,Telephones,11/04/13,IJ00020881,38.36,VODAFONE CORPORATE LIMITED, 
East Lindsey District Council,http://statistics.data.gov.uk/id/local-authority/32UC,TL Property,Telephones,11/04/13,IJ00020881,13.47,VODAFONE CORPORATE LIMITED, 
East Lindsey District Council,http://statistics.data.gov.uk/id/local-authority/32UC,Neighbourhood Services,Telephones,11/04/13,IJ00020881,20.78,VODAFONE CORPORATE LIMITED, 
East Lindsey District Council,http://statistics.data.gov.uk/id/local-authority/32UC,Economic & Tourism,Telephones,11/04/13,IJ00020881,14.84,VODAFONE CORPORATE LIMITED, 
East Lindsey District Council,http://statistics.data.gov.uk/id/local-authority/32UC,"Performance, Governance & Commissioning",Telephones,11/04/13,IJ00020881,1.50,VODAFONE CORPORATE LIMITED, 
East Lindsey District Council,http://statistics.data.gov.uk/id/local-authority/32UC,Cultural & Related Services,Telephones,11/04/13,IJ00020881,9.46,VODAFONE CORPORATE LIMITED, 
East Lindsey District Council,http://statistics.data.gov.uk/id/local-authority/32UC,"Performance, Governance & Commissioning",Telephones,11/04/13,IJ00020881,36.00,VODAFONE CORPORATE LIMITED, 
East Lindsey District Council,http://statistics.data.gov.uk/id/local-authority/32UC,Enforcement Team Leader,Telephones,11/04/13,IJ00020881,489.35,VODAFONE CORPORATE LIMITED, 
East Lindsey District Council,http://statistics.data.gov.uk/id/local-authority/32UC,Environment Team Leader,Telephones,11/04/13,IJ00020881,110.85,VODAFONE CORPORATE LIMITED, 
East Lindsey District Council,http://statistics.data.gov.uk/id/local-authority/32UC,Cultural & Related Services,Telephones,11/04/13,IJ00020881,21.01,VODAFONE CORPORATE LIMITED, 
East Lindsey District Council,http://statistics.data.gov.uk/id/local-authority/32UC,Cultural & Related Services,Telephones,11/04/13,IJ00020881,6.17,VODAFONE CORPORATE LIMITED, 
East Lindsey District Council,http://statistics.data.gov.uk/id/local-authority/32UC,Cultural & Related Services,Telephones,11/04/13,IJ00020881,27.40,VODAFONE CORPORATE LIMITED, 
East Lindsey District Council,http://statistics.data.gov.uk/id/local-authority/32UC,Cultural & Related Services,Telephones,11/04/13,IJ00020881,2.61,VODAFONE CORPORATE LIMITED, 
East Lindsey District Council,http://statistics.data.gov.uk/id/local-authority/32UC,Hsg Private Sector TL,Telephones,11/04/13,IJ00020881,18.55,VODAFONE CORPORATE LIMITED, 
East Lindsey District Council,http://statistics.data.gov.uk/id/local-authority/32UC,Housing Support TL,Telephones,11/04/13,IJ00020881,9.00,VODAFONE CORPORATE LIMITED, 
East Lindsey District Council,http://statistics.data.gov.uk/id/local-authority/32UC,"Performance, Governance & Commissioning",Telephones,11/04/13,IJ00020881,8.48,VODAFONE CORPORATE LIMITED, 
East Lindsey District Council,http://statistics.data.gov.uk/id/local-authority/32UC,Planning & Housing Policy Manager,Telephones,11/04/13,IJ00020881,9.00,VODAFONE CORPORATE LIMITED, 
East Lindsey District Council,http://statistics.data.gov.uk/id/local-authority/32UC,Planning & Housing Policy Manager,Telephones,11/04/13,IJ00020881,9.05,VODAFONE CORPORATE LIMITED, 
East Lindsey District Council,http://statistics.data.gov.uk/id/local-authority/32UC,Economic & Tourism,Telephones,11/04/13,IJ00020881,21.10,VODAFONE CORPORATE LIMITED, 
East Lindsey District Council,http://statistics.data.gov.uk/id/local-authority/32UC,Economic & Tourism,Telephones,11/04/13,IJ00020881,53.47,VODAFONE CORPORATE LIMITED, 
East Lindsey District Council,http://statistics.data.gov.uk/id/local-authority/32UC,Cultural & Related Services,Telephones,11/04/13,IJ00020881,53.60,VODAFONE CORPORATE LIMITED, 
East Lindsey District Council,http://statistics.data.gov.uk/id/local-authority/32UC,Cultural & Related Services,Telephones,11/04/13,IJ00020881,20.65,VODAFONE CORPORATE LIMITED, 
East Lindsey District Council,http://statistics.data.gov.uk/id/local-authority/32UC,Cultural & Related Services,Telephones,11/04/13,IJ00020881,1.52,VODAFONE CORPORATE LIMITED, 
East Lindsey District Council,http://statistics.data.gov.uk/id/local-authority/32UC,Cultural & Related Services,Telephones,11/04/13,IJ00020881,3.00,VODAFONE CORPORATE LIMITED, 
East Lindsey District Council,http://statistics.data.gov.uk/id/local-authority/32UC,Neighbourhood Services,Telephones,11/04/13,IJ00020881,84.68,VODAFONE CORPORATE LIMITED, 
East Lindsey District Council,http://statistics.data.gov.uk/id/local-authority/32UC,Neighbourhood Services,Telephones,11/04/13,IJ00020881,4.07,VODAFONE CORPORATE LIMITED, 
East Lindsey District Council,http://statistics.data.gov.uk/id/local-authority/32UC,Theatre Manager,Telephones,11/04/13,IJ00020881,1.50,VODAFONE CORPORATE LIMITED, 
East Lindsey District Council,http://statistics.data.gov.uk/id/local-authority/32UC,Information Technology,Telephones,11/04/13,IJ00020889,2975.59,CABLE & WIRELESS COMMUNICATIONS, 
East Lindsey District Council,http://statistics.data.gov.uk/id/local-authority/32UC,Building Control,Telephones,11/04/13,IJ00020891,23.49,CABLE & WIRELESS COMMUNICATIONS, 
East Lindsey District Council,http://statistics.data.gov.uk/id/local-authority/32UC,Information Technology,Telephones,11/04/13,IJ00020891,23.49,CABLE & WIRELESS COMMUNICATIONS, 
East Lindsey District Council,http://statistics.data.gov.uk/id/local-authority/32UC,Information Technology,Telephones,11/04/13,IJ00020891,1518.25,CABLE & WIRELESS COMMUNICATIONS, 
East Lindsey District Council,http://statistics.data.gov.uk/id/local-authority/32UC,"Performance, Governance & Commissioning",Postages,11/04/13,IJ00020759,510.55,ROYAL MAIL, 
East Lindsey District Council,http://statistics.data.gov.uk/id/local-authority/32UC,Waste Services Manager,Other agencies,11/04/13,IJ00020870,990.53,GLASS RECYCLING (UK) LTD, 
East Lindsey District Council,http://statistics.data.gov.uk/id/local-authority/32UC,Enforcement Team Leader,Grants and Contributions- Where a Service is Received,11/04/13,IJ00020867,9227.23,LINCOLNSHIRE COUNTY COUNCIL, 
East Lindsey District Council,http://statistics.data.gov.uk/id/local-authority/32UC,Information Technology,Telephones,11/04/13,IJ00020902,17599.36,LINCOLNSHIRE COUNTY COUNCIL, 
East Lindsey District Council,http://statistics.data.gov.uk/id/local-authority/32UC,TL Property,Buildings Maintenance - Responsive,11/04/13,IJ00020822,640.31,SEYMOUR & CASTLE LTD, 
East Lindsey District Council,http://statistics.data.gov.uk/id/local-authority/32UC,Waste Services Manager,Fuel & Oil,11/04/13,IJ00020873,20475.62,WATSON PETROLEUM LTD, 
East Lindsey District Council,http://statistics.data.gov.uk/id/local-authority/32UC,Waste Services Manager,Fuel & Oil,11/04/13,IJ00020874,7946.64,WATSON PETROLEUM LTD, 
East Lindsey District Council,http://statistics.data.gov.uk/id/local-authority/32UC,Leisure Operations,Electricity,11/04/13,IJ00020801,2016.09,SOUTHERN ELECTRIC PLC, 
East Lindsey District Council,http://statistics.data.gov.uk/id/local-authority/32UC,Theatre Manager,Buildings Maintenance - Responsive,11/04/13,IJ00020816,897.60,MARK ELDIN JOINERY, 
East Lindsey District Council,http://statistics.data.gov.uk/id/local-authority/32UC,Revenues & Benefits,Other Miscellaneous Expenses,11/04/13,IJ00020849,2164.96,ALLPAY NET LTD, 
East Lindsey District Council,http://statistics.data.gov.uk/id/local-authority/32UC,Revenues & Benefits,Other Miscellaneous Expenses,11/04/13,IJ00020849,48.34,ALLPAY NET LTD, 
East Lindsey District Council,http://statistics.data.gov.uk/id/local-authority/32UC,Housing Support TL,Rent and Lease Payments,11/04/13,IJ00020729,914.52,NEW LINX HOUSING TRUST, 
East Lindsey District Council,http://statistics.data.gov.uk/id/local-authority/32UC,Housing Support TL,Rent and Lease Payments,11/04/13,IJ00020730,852.60,NEW LINX HOUSING TRUST, 
East Lindsey District Council,http://statistics.data.gov.uk/id/local-authority/32UC,Housing Support TL,Rent and Lease Payments,11/04/13,IJ00020731,1005.00,NEW LINX HOUSING TRUST, 
East Lindsey District Council,http://statistics.data.gov.uk/id/local-authority/32UC,Housing Support TL,Rent and Lease Payments,11/04/13,IJ00020732,1001.64,NEW LINX HOUSING TRUST, 
East Lindsey District Council,http://statistics.data.gov.uk/id/local-authority/32UC,Waste Services Manager,Agency Staff,11/04/13,IJ00020904,5661.41,CLOSE INVOICE FINANCE LTD, 
East Lindsey District Council,http://statistics.data.gov.uk/id/local-authority/32UC,Corporate Accounting,Insurance,11/04/13,IJ00020837,112305.41,TRAVELERS INSURANCE COMPANY LIMITED, 
East Lindsey District Council,http://statistics.data.gov.uk/id/local-authority/32UC,TL Property,Electricity,11/04/13,IJ00020796,529.61,E.ON ENERGY, 
East Lindsey District Council,http://statistics.data.gov.uk/id/local-authority/32UC,Neighbourhood Services,Electricity,11/04/13,IJ00020796,45.08,E.ON ENERGY, 
East Lindsey District Council,http://statistics.data.gov.uk/id/local-authority/32UC,Neighbourhood Services,Electricity,11/04/13,IJ00020796,12.14,E.ON ENERGY, 
East Lindsey District Council,http://statistics.data.gov.uk/id/local-authority/32UC,Enforcement Team Leader,Electricity,11/04/13,IJ00020796,7.79,E.ON ENERGY, 
East Lindsey District Council,http://statistics.data.gov.uk/id/local-authority/32UC,TL Property,Electricity,11/04/13,IJ00020796,12.14,E.ON ENERGY, 
East Lindsey District Council,http://statistics.data.gov.uk/id/local-authority/32UC,TL Property,Electricity,11/04/13,IJ00020796,6.07,E.ON ENERGY, 
East Lindsey District Council,http://statistics.data.gov.uk/id/local-authority/32UC,Enforcement Team Leader,Electricity,11/04/13,IJ00020796,6.07,E.ON ENERGY, 
East Lindsey District Council,http://statistics.data.gov.uk/id/local-authority/32UC,TL Property,Electricity,11/04/13,IJ00020797,1996.32,E.ON ENERGY, 
East Lindsey District Council,http://statistics.data.gov.uk/id/local-authority/32UC,Neighbourhood Services,Electricity,11/04/13,IJ00020797,6.40,E.ON ENERGY, 
East Lindsey District Council,http://statistics.data.gov.uk/id/local-authority/32UC,Enforcement Team Leader,Electricity,11/04/13,IJ00020797,6.09,E.ON ENERGY, 
East Lindsey District Council,http://statistics.data.gov.uk/id/local-authority/32UC,Enforcement Team Leader,Electricity,11/04/13,IJ00020797,19.12,E.ON ENERGY, 
East Lindsey District Council,http://statistics.data.gov.uk/id/local-authority/32UC,Enforcement Team Leader,Electricity,11/04/13,IJ00020797,17.43,E.ON ENERGY, 
East Lindsey District Council,http://statistics.data.gov.uk/id/local-authority/32UC,Enforcement Team Leader,Electricity,11/04/13,IJ00020797,19.23,E.ON ENERGY, 
East Lindsey District Council,http://statistics.data.gov.uk/id/local-authority/32UC,Enforcement Team Leader,Electricity,11/04/13,IJ00020797,39.57,E.ON ENERGY, 
East Lindsey District Council,http://statistics.data.gov.uk/id/local-authority/32UC,Enforcement Team Leader,Electricity,11/04/13,IJ00020797,8.20,E.ON ENERGY, 
East Lindsey District Council,http://statistics.data.gov.uk/id/local-authority/32UC,Enforcement Team Leader,Electricity,11/04/13,IJ00020797,13.19,E.ON ENERGY, 
East Lindsey District Council,http://statistics.data.gov.uk/id/local-authority/32UC,Enforcement Team Leader,Furniture and Equipment,11/04/13,IJ00020743,1196.00,CALE BRIPARC, 
East Lindsey District Council,http://statistics.data.gov.uk/id/local-authority/32UC,Theatre Manager,Performers and Entertainers Fees,11/04/13,IJ00020919,1692.12,TIMELESS THEATRE PRODUCTIONS LTD, 
East Lindsey District Council,http://statistics.data.gov.uk/id/local-authority/32UC,Theatre Manager,Performers and Entertainers Fees,11/04/13,IJ00020919,-390.00,TIMELESS THEATRE PRODUCTIONS LTD, 
East Lindsey District Council,http://statistics.data.gov.uk/id/local-authority/32UC,Enforcement Team Leader,Payments to Bodies in Respect of Income Collected,11/04/13,IJ00020835,1795.35,INNES ENGLAND COMMERCIAL PROPERTY, 
East Lindsey District Council,http://statistics.data.gov.uk/id/local-authority/32UC,Enforcement Team Leader,Payments to Bodies in Respect of Income Collected,11/04/13,IJ00020911,1970.21,INNES ENGLAND COMMERCIAL PROPERTY, 
East Lindsey District Council,http://statistics.data.gov.uk/id/local-authority/32UC,Hsg Private Sector TL,Other Income,11/04/13,IJ00020793,-367.96,DENNISS & MARWOOD, 
East Lindsey District Council,http://statistics.data.gov.uk/id/local-authority/32UC,Hsg Private Sector TL,Grants and Contributions to Outside Bodies- No Service Recei,11/04/13,IJ00020793,4121.19,DENNISS & MARWOOD, 
East Lindsey District Council,http://statistics.data.gov.uk/id/local-authority/32UC,Information Technology,Computer Software Licence Costs,11/04/13,IJ00020861,1227.80,EXPERIAN LTD, 
East Lindsey District Council,http://statistics.data.gov.uk/id/local-authority/32UC,Information Technology,Computer Software Purchase,11/04/13,IJ00020860,5840.00,EXPERIAN LTD, 
East Lindsey District Council,http://statistics.data.gov.uk/id/local-authority/32UC,Cultural & Related Services,Professional & Contractors Fees,11/04/13,IJ00020892,3650.00,LAVA, 
East Lindsey District Council,http://statistics.data.gov.uk/id/local-authority/32UC,Cultural & Related Services,Advertising - Events,11/04/13,IJ00020895,9082.00,LAVA, 
East Lindsey District Council,http://statistics.data.gov.uk/id/local-authority/32UC,Waste Services Manager,Agency Staff,11/04/13,IJ00020875,544.00,LINCS MOTORHOMES LTD, 
East Lindsey District Council,http://statistics.data.gov.uk/id/local-authority/32UC,Waste Services Manager,Agency Staff,11/04/13,IJ00020876,1362.00,LINCS MOTORHOMES LTD, 
East Lindsey District Council,http://statistics.data.gov.uk/id/local-authority/32UC,Neighbourhood Services,Agency Staff,11/04/13,IJ00020855,716.14,THE WORKSHOP (WISBECH) LIMITED, 
East Lindsey District Council,http://statistics.data.gov.uk/id/local-authority/32UC,Neighbourhood Services,Agency Staff,11/04/13,IJ00020855,716.14,THE WORKSHOP (WISBECH) LIMITED, 
East Lindsey District Council,http://statistics.data.gov.uk/id/local-authority/32UC,Neighbourhood Services,Agency Staff,11/04/13,IJ00020856,717.09,THE WORKSHOP (WISBECH) LIMITED, 
East Lindsey District Council,http://statistics.data.gov.uk/id/local-authority/32UC,Neighbourhood Services,Agency Staff,11/04/13,IJ00020856,717.08,THE WORKSHOP (WISBECH) LIMITED, 
East Lindsey District Council,http://statistics.data.gov.uk/id/local-authority/32UC,Leisure Operations,Professional & Contractors Fees,11/04/13,IJ00020737,1020.00,DONNA MAHER, 
East Lindsey District Council,http://statistics.data.gov.uk/id/local-authority/32UC,Revenues & Benefits,Court Costs,11/04/13,IJ00020914,1752.00,CENTRAL FINANCE UNIT, 
East Lindsey District Council,http://statistics.data.gov.uk/id/local-authority/32UC,Revenues & Benefits,Court Costs,11/04/13,IJ00020914,249.00,CENTRAL FINANCE UNIT, 
East Lindsey District Council,http://statistics.data.gov.uk/id/local-authority/32UC,Housing Support TL,Rent and Lease Payments,11/04/13,IJ00020726,937.50,TOTEMIC LTD, 
East Lindsey District Council,http://statistics.data.gov.uk/id/local-authority/32UC,Economic & Tourism,Clothing Uniforms And Laundry,11/04/13,IJ00020738,1396.42,PHS LAUNDRYSERV, 
East Lindsey District Council,http://statistics.data.gov.uk/id/local-authority/32UC,Theatre Manager,Performers and Entertainers Fees,11/04/13,IJ00020718,1602.74,ARTISTES INTERNATIONAL MANAGEMENT LTD, 
East Lindsey District Council,http://statistics.data.gov.uk/id/local-authority/32UC,Theatre Manager,Performers and Entertainers Fees,11/04/13,IJ00020718,-260.00,ARTISTES INTERNATIONAL MANAGEMENT LTD, 
East Lindsey District Council,http://statistics.data.gov.uk/id/local-authority/32UC,Neighbourhood Services,Computer Software Purchase,11/04/13,IJ00020792,3091.50,MCPC SYSTEMS (UK) LTD, 
East Lindsey District Council,http://statistics.data.gov.uk/id/local-authority/32UC,Theatre Manager,Performers and Entertainers Fees,11/04/13,IJ00020920,2812.20,DEREK BLOCK CONCERT PROMOTIONS LTD, 
East Lindsey District Council,http://statistics.data.gov.uk/id/local-authority/32UC,Theatre Manager,Performers and Entertainers Fees,11/04/13,IJ00020920,-150.00,DEREK BLOCK CONCERT PROMOTIONS LTD, 
East Lindsey District Council,http://statistics.data.gov.uk/id/local-authority/32UC,Theatre Manager,Postages,11/04/13,IJ00020920,384.63,DEREK BLOCK CONCERT PROMOTIONS LTD, 
East Lindsey District Council,http://statistics.data.gov.uk/id/local-authority/32UC,Hsg Advice & Homelessness TL,Water and Sewerage Charges,11/04/13,IJ00020752,559.80,ANGLIAN WATER, 
East Lindsey District Council,http://statistics.data.gov.uk/id/local-authority/32UC,Hsg Advice & Homelessness TL,Water and Sewerage Charges,11/04/13,IJ00020753,550.54,ANGLIAN WATER, 
East Lindsey District Council,http://statistics.data.gov.uk/id/local-authority/32UC,Neighbourhood Services,Water and Sewerage Charges,11/04/13,IJ00020804,824.68,ANGLIAN WATER, 
East Lindsey District Council,http://statistics.data.gov.uk/id/local-authority/32UC,Corporate Accounting,Other Miscellaneous Expenses,11/04/13,IJ00020711,912.00,SYSTEMATIC PRINT MANAGEMENT LTD, 
East Lindsey District Council,http://statistics.data.gov.uk/id/local-authority/32UC,Economic & Tourism,Grants and Contributions to Outside Bodies- No Service Recei,11/04/13,IJ00020744,5000.00,SKILLSREACH, 
East Lindsey District Council,http://statistics.data.gov.uk/id/local-authority/32UC,Economic & Tourism,Grants and Contributions to Outside Bodies- No Service Recei,11/04/13,IJ00020757,5000.00,SKILLSREACH, 
East Lindsey District Council,http://statistics.data.gov.uk/id/local-authority/32UC,Building Control,Subscriptions to Organisations and Other Bodies,11/04/13,IJ00020864,2088.09,LABC EAST MIDLANDS, 
East Lindsey District Council,http://statistics.data.gov.uk/id/local-authority/32UC,Leisure Operations,Grants and Contributions to Outside Bodies- No Service Recei,11/04/13,IJ00020758,660.00,FIRESTOP SERVICES LIMITED, 
East Lindsey District Council,http://statistics.data.gov.uk/id/local-authority/32UC,Building Control,Subscriptions to Organisations and Other Bodies,11/04/13,IJ00020862,728.00,BSI, 
East Lindsey District Council,http://statistics.data.gov.uk/id/local-authority/32UC,Economic & Tourism,Other Miscellaneous Expenses,11/04/13,IJ00020742,910.50,BRITISH HARDWOOD TREE NURSERY LTD, 
East Lindsey District Council,http://statistics.data.gov.uk/id/local-authority/32UC,Waste Services Manager,Telephones,11/04/13,IJ00020854,11.14,DAISY COMMUNICATIONS LTD, 
East Lindsey District Council,http://statistics.data.gov.uk/id/local-authority/32UC,Customer Services Manager,Telephones,11/04/13,IJ00020854,222.23,DAISY COMMUNICATIONS LTD, 
East Lindsey District Council,http://statistics.data.gov.uk/id/local-authority/32UC,Theatre Manager,Telephones,11/04/13,IJ00020854,54.95,DAISY COMMUNICATIONS LTD, 
East Lindsey District Council,http://statistics.data.gov.uk/id/local-authority/32UC,Theatre Manager,Telephones,11/04/13,IJ00020854,58.06,DAISY COMMUNICATIONS LTD, 
East Lindsey District Council,http://statistics.data.gov.uk/id/local-authority/32UC,Enforcement Team Leader,Telephones,11/04/13,IJ00020854,22.34,DAISY COMMUNICATIONS LTD, 
East Lindsey District Council,http://statistics.data.gov.uk/id/local-authority/32UC,Hsg Private Sector TL,Telephones,11/04/13,IJ00020854,11.82,DAISY COMMUNICATIONS LTD, 
East Lindsey District Council,http://statistics.data.gov.uk/id/local-authority/32UC,Corporate Accounting,Telephones,11/04/13,IJ00020854,10.99,DAISY COMMUNICATIONS LTD, 
East Lindsey District Council,http://statistics.data.gov.uk/id/local-authority/32UC,Corporate Accounting,Telephones,11/04/13,IJ00020854,21.98,DAISY COMMUNICATIONS LTD, 
East Lindsey District Council,http://statistics.data.gov.uk/id/local-authority/32UC,Building Control,Telephones,11/04/13,IJ00020854,52.64,DAISY COMMUNICATIONS LTD, 
East Lindsey District Council,http://statistics.data.gov.uk/id/local-authority/32UC,Housing Support TL,Telephones,11/04/13,IJ00020854,11.01,DAISY COMMUNICATIONS LTD, 
East Lindsey District Council,http://statistics.data.gov.uk/id/local-authority/32UC,Economic & Tourism,Telephones,11/04/13,IJ00020854,40.97,DAISY COMMUNICATIONS LTD, 
East Lindsey District Council,http://statistics.data.gov.uk/id/local-authority/32UC,Corporate Management,Telephones,11/04/13,IJ00020854,1743.81,DAISY COMMUNICATIONS LTD, 
East Lindsey District Council,http://statistics.data.gov.uk/id/local-authority/32UC,Corporate Management,Telephones,11/04/13,IJ00020854,831.10,DAISY COMMUNICATIONS LTD, 
East Lindsey District Council,http://statistics.data.gov.uk/id/local-authority/32UC,Commercial Team Leader,Telephones,11/04/13,IJ00020854,11.04,DAISY COMMUNICATIONS LTD, 
East Lindsey District Council,http://statistics.data.gov.uk/id/local-authority/32UC,TL Property,Telephones,11/04/13,IJ00020854,11.01,DAISY COMMUNICATIONS LTD, 
East Lindsey District Council,http://statistics.data.gov.uk/id/local-authority/32UC,Information Technology,Telephones,11/04/13,IJ00020854,103.55,DAISY COMMUNICATIONS LTD, 
East Lindsey District Council,http://statistics.data.gov.uk/id/local-authority/32UC,Information Technology,Telephones,11/04/13,IJ00020854,21.98,DAISY COMMUNICATIONS LTD, 
East Lindsey District Council,http://statistics.data.gov.uk/id/local-authority/32UC,Leisure Operations,Telephones,11/04/13,IJ00020854,146.98,DAISY COMMUNICATIONS LTD, 
East Lindsey District Council,http://statistics.data.gov.uk/id/local-authority/32UC,Leisure Operations,Telephones,11/04/13,IJ00020854,63.55,DAISY COMMUNICATIONS LTD, 
East Lindsey District Council,http://statistics.data.gov.uk/id/local-authority/32UC,Economic & Tourism,Telephones,11/04/13,IJ00020854,426.09,DAISY COMMUNICATIONS LTD, 
East Lindsey District Council,http://statistics.data.gov.uk/id/local-authority/32UC,Economic & Tourism,Telephones,11/04/13,IJ00020854,476.73,DAISY COMMUNICATIONS LTD, 
East Lindsey District Council,http://statistics.data.gov.uk/id/local-authority/32UC,Economic & Tourism,Telephones,11/04/13,IJ00020854,329.39,DAISY COMMUNICATIONS LTD, 
East Lindsey District Council,http://statistics.data.gov.uk/id/local-authority/32UC,Leisure Operations,Telephones,11/04/13,IJ00020854,39.38,DAISY COMMUNICATIONS LTD, 
East Lindsey District Council,http://statistics.data.gov.uk/id/local-authority/32UC,Leisure Operations,Telephones,11/04/13,IJ00020854,10.99,DAISY COMMUNICATIONS LTD, 
East Lindsey District Council,http://statistics.data.gov.uk/id/local-authority/32UC,Leisure Operations,Telephones,11/04/13,IJ00020854,10.99,DAISY COMMUNICATIONS LTD, 
East Lindsey District Council,http://statistics.data.gov.uk/id/local-authority/32UC,Leisure Operations,Telephones,11/04/13,IJ00020854,59.36,DAISY COMMUNICATIONS LTD, 
East Lindsey District Council,http://statistics.data.gov.uk/id/local-authority/32UC,TL Property,Telephones,11/04/13,IJ00020854,10.99,DAISY COMMUNICATIONS LTD, 
East Lindsey District Council,http://statistics.data.gov.uk/id/local-authority/32UC,TL Property,Telephones,11/04/13,IJ00020854,11.04,DAISY COMMUNICATIONS LTD, 
East Lindsey District Council,http://statistics.data.gov.uk/id/local-authority/32UC,TL Property,Telephones,11/04/13,IJ00020854,25.08,DAISY COMMUNICATIONS LTD, 
East Lindsey District Council,http://statistics.data.gov.uk/id/local-authority/32UC,TL Property,Telephones,11/04/13,IJ00020854,10.99,DAISY COMMUNICATIONS LTD, 
East Lindsey District Council,http://statistics.data.gov.uk/id/local-authority/32UC,TL Property,Telephones,11/04/13,IJ00020854,45.47,DAISY COMMUNICATIONS LTD, 
East Lindsey District Council,http://statistics.data.gov.uk/id/local-authority/32UC,Leisure Operations,Telephones,11/04/13,IJ00020854,23.30,DAISY COMMUNICATIONS LTD, 
East Lindsey District Council,http://statistics.data.gov.uk/id/local-authority/32UC,Leisure Operations,Telephones,11/04/13,IJ00020854,40.63,DAISY COMMUNICATIONS LTD, 
East Lindsey District Council,http://statistics.data.gov.uk/id/local-authority/32UC,Leisure Operations,Telephones,11/04/13,IJ00020854,10.99,DAISY COMMUNICATIONS LTD, 
East Lindsey District Council,http://statistics.data.gov.uk/id/local-authority/32UC,Neighbourhood Services,Telephones,11/04/13,IJ00020854,12.18,DAISY COMMUNICATIONS LTD, 
East Lindsey District Council,http://statistics.data.gov.uk/id/local-authority/32UC,Neighbourhood Services,Telephones,11/04/13,IJ00020854,10.99,DAISY COMMUNICATIONS LTD, 
East Lindsey District Council,http://statistics.data.gov.uk/id/local-authority/32UC,Neighbourhood Services,Telephones,11/04/13,IJ00020854,23.85,DAISY COMMUNICATIONS LTD, 
East Lindsey District Council,http://statistics.data.gov.uk/id/local-authority/32UC,TL Property,Telephones,11/04/13,IJ00020854,10.99,DAISY COMMUNICATIONS LTD, 
East Lindsey District Council,http://statistics.data.gov.uk/id/local-authority/32UC,TL Property,Telephones,11/04/13,IJ00020854,11.43,DAISY COMMUNICATIONS LTD, 
East Lindsey District Council,http://statistics.data.gov.uk/id/local-authority/32UC,TL Property,Telephones,11/04/13,IJ00020854,10.99,DAISY COMMUNICATIONS LTD, 
East Lindsey District Council,http://statistics.data.gov.uk/id/local-authority/32UC,Theatre Manager,Telephones,11/04/13,IJ00020854,10.99,DAISY COMMUNICATIONS LTD, 
East Lindsey District Council,http://statistics.data.gov.uk/id/local-authority/32UC,TL Property,Telephones,11/04/13,IJ00020854,33.77,DAISY COMMUNICATIONS LTD, 
East Lindsey District Council,http://statistics.data.gov.uk/id/local-authority/32UC,Waste Services Manager,Telephones,11/04/13,IJ00020871,11.13,DAISY COMMUNICATIONS LTD, 
East Lindsey District Council,http://statistics.data.gov.uk/id/local-authority/32UC,Customer Services Manager,Telephones,11/04/13,IJ00020871,43.71,DAISY COMMUNICATIONS LTD, 
East Lindsey District Council,http://statistics.data.gov.uk/id/local-authority/32UC,Theatre Manager,Telephones,11/04/13,IJ00020871,57.20,DAISY COMMUNICATIONS LTD, 
East Lindsey District Council,http://statistics.data.gov.uk/id/local-authority/32UC,Theatre Manager,Telephones,11/04/13,IJ00020871,58.06,DAISY COMMUNICATIONS LTD, 
East Lindsey District Council,http://statistics.data.gov.uk/id/local-authority/32UC,Enforcement Team Leader,Telephones,11/04/13,IJ00020871,22.34,DAISY COMMUNICATIONS LTD, 
East Lindsey District Council,http://statistics.data.gov.uk/id/local-authority/32UC,Hsg Private Sector TL,Telephones,11/04/13,IJ00020871,11.12,DAISY COMMUNICATIONS LTD, 
East Lindsey District Council,http://statistics.data.gov.uk/id/local-authority/32UC,Corporate Accounting,Telephones,11/04/13,IJ00020871,11.10,DAISY COMMUNICATIONS LTD, 
East Lindsey District Council,http://statistics.data.gov.uk/id/local-authority/32UC,Corporate Accounting,Telephones,11/04/13,IJ00020871,21.97,DAISY COMMUNICATIONS LTD, 
East Lindsey District Council,http://statistics.data.gov.uk/id/local-authority/32UC,Building Control,Telephones,11/04/13,IJ00020871,52.99,DAISY COMMUNICATIONS LTD, 
East Lindsey District Council,http://statistics.data.gov.uk/id/local-authority/32UC,Housing Support TL,Telephones,11/04/13,IJ00020871,11.01,DAISY COMMUNICATIONS LTD, 
East Lindsey District Council,http://statistics.data.gov.uk/id/local-authority/32UC,Economic & Tourism,Telephones,11/04/13,IJ00020871,46.86,DAISY COMMUNICATIONS LTD, 
East Lindsey District Council,http://statistics.data.gov.uk/id/local-authority/32UC,Corporate Management,Telephones,11/04/13,IJ00020871,1915.07,DAISY COMMUNICATIONS LTD, 
East Lindsey District Council,http://statistics.data.gov.uk/id/local-authority/32UC,Corporate Management,Telephones,11/04/13,IJ00020871,873.95,DAISY COMMUNICATIONS LTD, 
East Lindsey District Council,http://statistics.data.gov.uk/id/local-authority/32UC,Commercial Team Leader,Telephones,11/04/13,IJ00020871,10.99,DAISY COMMUNICATIONS LTD, 
East Lindsey District Council,http://statistics.data.gov.uk/id/local-authority/32UC,TL Property,Telephones,11/04/13,IJ00020871,11.00,DAISY COMMUNICATIONS LTD, 
East Lindsey District Council,http://statistics.data.gov.uk/id/local-authority/32UC,Information Technology,Telephones,11/04/13,IJ00020871,102.30,DAISY COMMUNICATIONS LTD, 
East Lindsey District Council,http://statistics.data.gov.uk/id/local-authority/32UC,Information Technology,Telephones,11/04/13,IJ00020871,21.98,DAISY COMMUNICATIONS LTD, 
East Lindsey District Council,http://statistics.data.gov.uk/id/local-authority/32UC,Leisure Operations,Telephones,11/04/13,IJ00020871,153.15,DAISY COMMUNICATIONS LTD, 
East Lindsey District Council,http://statistics.data.gov.uk/id/local-authority/32UC,Leisure Operations,Telephones,11/04/13,IJ00020871,64.56,DAISY COMMUNICATIONS LTD, 
East Lindsey District Council,http://statistics.data.gov.uk/id/local-authority/32UC,Economic & Tourism,Telephones,11/04/13,IJ00020871,432.47,DAISY COMMUNICATIONS LTD, 
East Lindsey District Council,http://statistics.data.gov.uk/id/local-authority/32UC,Economic & Tourism,Telephones,11/04/13,IJ00020871,487.25,DAISY COMMUNICATIONS LTD, 
East Lindsey District Council,http://statistics.data.gov.uk/id/local-authority/32UC,Economic & Tourism,Telephones,11/04/13,IJ00020871,346.85,DAISY COMMUNICATIONS LTD, 
East Lindsey District Council,http://statistics.data.gov.uk/id/local-authority/32UC,Leisure Operations,Telephones,11/04/13,IJ00020871,39.35,DAISY COMMUNICATIONS LTD, 
East Lindsey District Council,http://statistics.data.gov.uk/id/local-authority/32UC,Leisure Operations,Telephones,11/04/13,IJ00020871,10.99,DAISY COMMUNICATIONS LTD, 
East Lindsey District Council,http://statistics.data.gov.uk/id/local-authority/32UC,Leisure Operations,Telephones,11/04/13,IJ00020871,10.99,DAISY COMMUNICATIONS LTD, 
East Lindsey District Council,http://statistics.data.gov.uk/id/local-authority/32UC,Leisure Operations,Telephones,11/04/13,IJ00020871,68.58,DAISY COMMUNICATIONS LTD, 
East Lindsey District Council,http://statistics.data.gov.uk/id/local-authority/32UC,TL Property,Telephones,11/04/13,IJ00020871,10.99,DAISY COMMUNICATIONS LTD, 
East Lindsey District Council,http://statistics.data.gov.uk/id/local-authority/32UC,TL Property,Telephones,11/04/13,IJ00020871,11.04,DAISY COMMUNICATIONS LTD, 
East Lindsey District Council,http://statistics.data.gov.uk/id/local-authority/32UC,TL Property,Telephones,11/04/13,IJ00020871,22.40,DAISY COMMUNICATIONS LTD, 
East Lindsey District Council,http://statistics.data.gov.uk/id/local-authority/32UC,TL Property,Telephones,11/04/13,IJ00020871,10.99,DAISY COMMUNICATIONS LTD, 
East Lindsey District Council,http://statistics.data.gov.uk/id/local-authority/32UC,TL Property,Telephones,11/04/13,IJ00020871,52.99,DAISY COMMUNICATIONS LTD, 
East Lindsey District Council,http://statistics.data.gov.uk/id/local-authority/32UC,Leisure Operations,Telephones,11/04/13,IJ00020871,23.00,DAISY COMMUNICATIONS LTD, 
East Lindsey District Council,http://statistics.data.gov.uk/id/local-authority/32UC,Leisure Operations,Telephones,11/04/13,IJ00020871,42.66,DAISY COMMUNICATIONS LTD, 
East Lindsey District Council,http://statistics.data.gov.uk/id/local-authority/32UC,Leisure Operations,Telephones,11/04/13,IJ00020871,10.99,DAISY COMMUNICATIONS LTD, 
East Lindsey District Council,http://statistics.data.gov.uk/id/local-authority/32UC,Neighbourhood Services,Telephones,11/04/13,IJ00020871,20.53,DAISY COMMUNICATIONS LTD, 
East Lindsey District Council,http://statistics.data.gov.uk/id/local-authority/32UC,Neighbourhood Services,Telephones,11/04/13,IJ00020871,10.99,DAISY COMMUNICATIONS LTD, 
East Lindsey District Council,http://statistics.data.gov.uk/id/local-authority/32UC,Neighbourhood Services,Telephones,11/04/13,IJ00020871,22.34,DAISY COMMUNICATIONS LTD, 
East Lindsey District Council,http://statistics.data.gov.uk/id/local-authority/32UC,TL Property,Telephones,11/04/13,IJ00020871,10.99,DAISY COMMUNICATIONS LTD, 
East Lindsey District Council,http://statistics.data.gov.uk/id/local-authority/32UC,TL Property,Telephones,11/04/13,IJ00020871,11.19,DAISY COMMUNICATIONS LTD, 
East Lindsey District Council,http://statistics.data.gov.uk/id/local-authority/32UC,TL Property,Telephones,11/04/13,IJ00020871,10.99,DAISY COMMUNICATIONS LTD, 
East Lindsey District Council,http://statistics.data.gov.uk/id/local-authority/32UC,Theatre Manager,Telephones,11/04/13,IJ00020871,10.99,DAISY COMMUNICATIONS LTD, 
East Lindsey District Council,http://statistics.data.gov.uk/id/local-authority/32UC,TL Property,Telephones,11/04/13,IJ00020871,33.79,DAISY COMMUNICATIONS LTD, 
East Lindsey District Council,http://statistics.data.gov.uk/id/local-authority/32UC,Capital WIP,Works to Buildings (main Contractor),11/04/13,IJ00020923,2074.39,Langwith Builders Ltd, 
East Lindsey District Council,http://statistics.data.gov.uk/id/local-authority/32UC,Capital WIP,Works to Buildings (main Contractor),11/04/13,IJ00020924,35126.98,Langwith Builders Ltd, 
East Lindsey District Council,http://statistics.data.gov.uk/id/local-authority/32UC,Neighbourhood Services,Maintenance,11/04/13,IJ00020791,1312.96,MAY GURNEY FLEET & PASSENGER SERVICES LTD, 
East Lindsey District Council,http://statistics.data.gov.uk/id/local-authority/32UC,Waste Services Manager,Commercial Vehicle Lease,11/04/13,IJ00020827,42483.13,MAY GURNEY FLEET & PASSENGER SERVICES LTD, 
East Lindsey District Council,http://statistics.data.gov.uk/id/local-authority/32UC,Theatre Manager,Commercial Vehicle Lease,11/04/13,IJ00020827,376.97,MAY GURNEY FLEET & PASSENGER SERVICES LTD, 
East Lindsey District Council,http://statistics.data.gov.uk/id/local-authority/32UC,Neighbourhood Services,Commercial Vehicle Lease,11/04/13,IJ00020827,16023.60,MAY GURNEY FLEET & PASSENGER SERVICES LTD, 
East Lindsey District Council,http://statistics.data.gov.uk/id/local-authority/32UC,TL Property,Commercial Vehicle Lease,11/04/13,IJ00020827,308.63,MAY GURNEY FLEET & PASSENGER SERVICES LTD, 
East Lindsey District Council,http://statistics.data.gov.uk/id/local-authority/32UC,Corporate Accounting,Insurance,11/04/13,IJ00020866,11029.00,MUNICH RE, 
East Lindsey District Council,http://statistics.data.gov.uk/id/local-authority/32UC,Cultural & Related Services,Professional & Contractors Fees,11/04/13,IJ00020893,4250.00,RED DOG FILM CIC, 
East Lindsey District Council,http://statistics.data.gov.uk/id/local-authority/32UC,Hsg Private Sector TL,Other Income,11/04/13,IJ00020794,-422.91,ANDREW WRISDALE BUILDING CONTRACTOR, 
East Lindsey District Council,http://statistics.data.gov.uk/id/local-authority/32UC,Hsg Private Sector TL,Grants and Contributions to Outside Bodies- No Service Recei,11/04/13,IJ00020794,4736.63,ANDREW WRISDALE BUILDING CONTRACTOR, 
East Lindsey District Council,http://statistics.data.gov.uk/id/local-authority/32UC,Corporate Management,Staff Training Expenses,11/04/13,IJ00020878,2100.00,SSD Training Services LTD, 
East Lindsey District Council,http://statistics.data.gov.uk/id/local-authority/32UC,Revenues & Benefits,VAT Customs and Excise,11/04/13,IJ00020767,750.30,Bristow and Sutor, 
East Lindsey District Council,http://statistics.data.gov.uk/id/local-authority/32UC,Building Control,Professional & Contractors Fees,11/04/13,IJ00020863,715.00,York Sills Ltd, 
East Lindsey District Council,http://statistics.data.gov.uk/id/local-authority/32UC,TL Property,Professional & Contractors Fees,11/04/13,IJ00020899,562.50,Louth Education Community Interest Company, 
East Lindsey District Council,http://statistics.data.gov.uk/id/local-authority/32UC,Waste Services Manager,Telephones,11/04/13,IJ00020909,3760.00,THE HANDS FREE COMPANY, 
East Lindsey District Council,http://statistics.data.gov.uk/id/local-authority/32UC,Theatre Manager,Performers and Entertainers Fees,11/04/13,IJ00020832,1500.00,CES Heane, 
East Lindsey District Council,http://statistics.data.gov.uk/id/local-authority/32UC,Leisure Operations,Grants and Contributions to Outside Bodies- No Service Recei,11/04/13,IJ00020925,1000.00,DWA Plumbing, 
East Lindsey District Council,http://statistics.data.gov.uk/id/local-authority/32UC,Leisure Operations,Grants and Contributions to Outside Bodies- No Service Recei,11/04/13,IJ00020926,15768.99,Redacted personal information,Redacted
East Lindsey District Council,http://statistics.data.gov.uk/id/local-authority/32UC,Leisure Operations,Grants and Contributions to Outside Bodies- No Service Recei,11/04/13,IJ00020928,816.69,Playspace Management limited, 
East Lindsey District Council,http://statistics.data.gov.uk/id/local-authority/32UC,Customer Services Manager,Payments to Bodies in Respect of Income Collected,15/04/13,IJ00020931,1487.77,NATIONAL EXPRESS CREDIT CONTROL DEPT, 
East Lindsey District Council,http://statistics.data.gov.uk/id/local-authority/32UC,Customer Services Manager,Payments to Bodies in Respect of Income Collected,15/04/13,IJ00020931,2047.07,NATIONAL EXPRESS CREDIT CONTROL DEPT, 
East Lindsey District Council,http://statistics.data.gov.uk/id/local-authority/32UC,Customer Services Manager,Payments to Bodies in Respect of Income Collected,15/04/13,IJ00020931,552.92,NATIONAL EXPRESS CREDIT CONTROL DEPT, 
East Lindsey District Council,http://statistics.data.gov.uk/id/local-authority/32UC,Customer Services Manager,Payments to Bodies in Respect of Income Collected,15/04/13,IJ00020931,47.76,NATIONAL EXPRESS CREDIT CONTROL DEPT, 
East Lindsey District Council,http://statistics.data.gov.uk/id/local-authority/32UC,Corporate Accounting,Grants and Contributions to Outside Bodies- No Service Recei,18/04/13,IJ00020940,4668.00,ALFORD TOWN COUNCIL, 
East Lindsey District Council,http://statistics.data.gov.uk/id/local-authority/32UC,Corporate Management,Parish Council Precepts,18/04/13,IJ00021054,20656.00,ALFORD TOWN COUNCIL, 
East Lindsey District Council,http://statistics.data.gov.uk/id/local-authority/32UC,Economic & Tourism,Professional & Contractors Fees,18/04/13,IJ00021274,1093.13,SID DENNIS & SONS LTD, 
East Lindsey District Council,http://statistics.data.gov.uk/id/local-authority/32UC,Corporate Management,Parish Council Precepts,18/04/13,IJ00021087,3539.00,HAGWORTHINGHAM PARISH COUNCIL, 
East Lindsey District Council,http://statistics.data.gov.uk/id/local-authority/32UC,TL Property,Buildings Maintenance - Responsive,18/04/13,IJ00021228,2104.69,HARLITE INSTALLATIONS LTD, 
East Lindsey District Council,http://statistics.data.gov.uk/id/local-authority/32UC,Corporate Management,Parish Council Precepts,18/04/13,IJ00021127,3500.00,NORTH COTES PARISH COUNCIL, 
East Lindsey District Council,http://statistics.data.gov.uk/id/local-authority/32UC,Hsg Private Sector TL,Other Income,18/04/13,IJ00021253,-488.79,SIBJON BUILDERS, 
East Lindsey District Council,http://statistics.data.gov.uk/id/local-authority/32UC,Hsg Private Sector TL,Grants and Contributions to Outside Bodies- No Service Recei,18/04/13,IJ00021253,5474.47,SIBJON BUILDERS, 
East Lindsey District Council,http://statistics.data.gov.uk/id/local-authority/32UC,Corporate Management,Parish Council Precepts,18/04/13,IJ00021168,26000.00,WOODHALL SPA PARISH COUNCIL, 
East Lindsey District Council,http://statistics.data.gov.uk/id/local-authority/32UC,Corporate Accounting,Grants and Contributions to Outside Bodies- No Service Recei,18/04/13,IJ00021050,1708.00,WOODHALL SPA PARISH COUNCIL, 
East Lindsey District Council,http://statistics.data.gov.uk/id/local-authority/32UC,Theatre Manager,Banking Charges,18/04/13,IJ00021300,568.89,BARCLAYS MERCHANT SERVICES, 
East Lindsey District Council,http://statistics.data.gov.uk/id/local-authority/32UC,Corporate Management,Parish Council Precepts,18/04/13,IJ00021143,18386.00,SPILSBY TOWN COUNCIL, 
East Lindsey District Council,http://statistics.data.gov.uk/id/local-authority/32UC,Corporate Accounting,Grants and Contributions to Outside Bodies- No Service Recei,18/04/13,IJ00021009,3874.50,SPILSBY TOWN COUNCIL, 
East Lindsey District Council,http://statistics.data.gov.uk/id/local-authority/32UC,Corporate Accounting,Grants and Contributions to Outside Bodies- No Service Recei,18/04/13,IJ00020970,1032.00,GRIMOLDBY & MANBY PARISH COUNCIL, 
East Lindsey District Council,http://statistics.data.gov.uk/id/local-authority/32UC,Corporate Management,Parish Council Precepts,18/04/13,IJ00021086,8238.00,GRIMOLDBY & MANBY PARISH COUNCIL, 
East Lindsey District Council,http://statistics.data.gov.uk/id/local-authority/32UC,Corporate Accounting,Grants and Contributions to Outside Bodies- No Service Recei,18/04/13,IJ00020947,1001.00,BINBROOK PARISH COUNCIL, 
East Lindsey District Council,http://statistics.data.gov.uk/id/local-authority/32UC,Corporate Management,Parish Council Precepts,18/04/13,IJ00021062,5771.50,BINBROOK PARISH COUNCIL, 
East Lindsey District Council,http://statistics.data.gov.uk/id/local-authority/32UC,Corporate Management,Parish Council Precepts,18/04/13,IJ00021094,1898.00,HUNDLEBY PARISH COUNCIL, 
East Lindsey District Council,http://statistics.data.gov.uk/id/local-authority/32UC,Corporate Management,Parish Council Precepts,18/04/13,IJ00021097,3000.00,KIRKBY ON BAIN PARISH COUNCIL, 
East Lindsey District Council,http://statistics.data.gov.uk/id/local-authority/32UC,Corporate Management,Parish Council Precepts,18/04/13,IJ00021150,4095.00,TETFORD PARISH COUNCIL, 
East Lindsey District Council,http://statistics.data.gov.uk/id/local-authority/32UC,Corporate Management,Parish Council Precepts,18/04/13,IJ00021154,1761.00,THORNTON LE FEN PARISH COUNCIL, 
East Lindsey District Council,http://statistics.data.gov.uk/id/local-authority/32UC,Corporate Management,Parish Council Precepts,18/04/13,IJ00021158,896.00,TUMBY PARISH COUNCIL, 
East Lindsey District Council,http://statistics.data.gov.uk/id/local-authority/32UC,Corporate Management,Parish Council Precepts,18/04/13,IJ00021161,3270.00,WELTON LE MARSH PARISH COUNCIL, 
East Lindsey District Council,http://statistics.data.gov.uk/id/local-authority/32UC,Corporate Management,Parish Council Precepts,18/04/13,IJ00021130,1736.00,ORBY PARISH COUNCIL, 
East Lindsey District Council,http://statistics.data.gov.uk/id/local-authority/32UC,Economic & Tourism,Other Miscellaneous Expenses,18/04/13,IJ00021206,2869.50,HERITAGE TRUST OF LINCOLNSHIRE LTD, 
East Lindsey District Council,http://statistics.data.gov.uk/id/local-authority/32UC,Enforcement Team Leader,Car Parking Excess Charges,18/04/13,IJ00021010,5570.00,BOSTON BOROUGH COUNCIL, 
East Lindsey District Council,http://statistics.data.gov.uk/id/local-authority/32UC,Corporate Management,Parish Council Precepts,18/04/13,IJ00021137,99051.50,SKEGNESS TOWN COUNCIL, 
East Lindsey District Council,http://statistics.data.gov.uk/id/local-authority/32UC,Corporate Accounting,Grants and Contributions to Outside Bodies- No Service Recei,18/04/13,IJ00021005,25393.00,SKEGNESS TOWN COUNCIL, 
East Lindsey District Council,http://statistics.data.gov.uk/id/local-authority/32UC,Hsg Private Sector TL,Other Income,18/04/13,IJ00021260,-385.58,M & M GRANTHAM, 
East Lindsey District Council,http://statistics.data.gov.uk/id/local-authority/32UC,Hsg Private Sector TL,Grants and Contributions to Outside Bodies- No Service Recei,18/04/13,IJ00021260,4318.52,M & M GRANTHAM, 
East Lindsey District Council,http://statistics.data.gov.uk/id/local-authority/32UC,Corporate Management,Parish Council Precepts,18/04/13,IJ00021123,4456.00,MINTING & GAUTBY PARISH COUNCIL, 
East Lindsey District Council,http://statistics.data.gov.uk/id/local-authority/32UC,Corporate Management,Parish Council Precepts,18/04/13,IJ00021146,701.00,STRUBBY WITH WOODTHORPE PARISH MEETING, 
East Lindsey District Council,http://statistics.data.gov.uk/id/local-authority/32UC,Corporate Accounting,Grants and Contributions to Outside Bodies- No Service Recei,18/04/13,IJ00020950,3250.00,BURGH LE MARSH TOWN COUNCIL, 
East Lindsey District Council,http://statistics.data.gov.uk/id/local-authority/32UC,Corporate Management,Parish Council Precepts,18/04/13,IJ00021065,17439.47,BURGH LE MARSH TOWN COUNCIL, 
East Lindsey District Council,http://statistics.data.gov.uk/id/local-authority/32UC,Corporate Accounting,Postages,18/04/13,IJ00020930,15.57,ROYAL MAIL, 
East Lindsey District Council,http://statistics.data.gov.uk/id/local-authority/32UC,Enforcement Team Leader,Postages,18/04/13,IJ00020930,16.18,ROYAL MAIL, 
East Lindsey District Council,http://statistics.data.gov.uk/id/local-authority/32UC,Corporate Management,Postages,18/04/13,IJ00020930,665.22,ROYAL MAIL, 
East Lindsey District Council,http://statistics.data.gov.uk/id/local-authority/32UC,Corporate Management,Postages,18/04/13,IJ00020930,249.06,ROYAL MAIL, 
East Lindsey District Council,http://statistics.data.gov.uk/id/local-authority/32UC,Corporate Management,Postages,18/04/13,IJ00020930,785.35,ROYAL MAIL, 
East Lindsey District Council,http://statistics.data.gov.uk/id/local-authority/32UC,Corporate Management,Postages,18/04/13,IJ00020930,269.93,ROYAL MAIL, 
East Lindsey District Council,http://statistics.data.gov.uk/id/local-authority/32UC,Corporate Management,Postages,18/04/13,IJ00020930,35.11,ROYAL MAIL, 
East Lindsey District Council,http://statistics.data.gov.uk/id/local-authority/32UC,Corporate Management,Postages,18/04/13,IJ00020930,6.12,ROYAL MAIL, 
East Lindsey District Council,http://statistics.data.gov.uk/id/local-authority/32UC,Corporate Accounting,Postages,18/04/13,IJ00020932,12.86,ROYAL MAIL, 
East Lindsey District Council,http://statistics.data.gov.uk/id/local-authority/32UC,Corporate Management,Postages,18/04/13,IJ00020932,442.35,ROYAL MAIL, 
East Lindsey District Council,http://statistics.data.gov.uk/id/local-authority/32UC,Corporate Management,Postages,18/04/13,IJ00020932,248.77,ROYAL MAIL, 
East Lindsey District Council,http://statistics.data.gov.uk/id/local-authority/32UC,Corporate Management,Postages,18/04/13,IJ00020932,201.72,ROYAL MAIL, 
East Lindsey District Council,http://statistics.data.gov.uk/id/local-authority/32UC,Corporate Management,Postages,18/04/13,IJ00020932,17.05,ROYAL MAIL, 
East Lindsey District Council,http://statistics.data.gov.uk/id/local-authority/32UC,Corporate Management,Postages,18/04/13,IJ00020932,2241.31,ROYAL MAIL, 
East Lindsey District Council,http://statistics.data.gov.uk/id/local-authority/32UC,Corporate Management,Postages,18/04/13,IJ00020932,723.54,ROYAL MAIL, 
East Lindsey District Council,http://statistics.data.gov.uk/id/local-authority/32UC,Corporate Management,Postages,18/04/13,IJ00020932,62.88,ROYAL MAIL, 
East Lindsey District Council,http://statistics.data.gov.uk/id/local-authority/32UC,Corporate Accounting,Postages,18/04/13,IJ00020934,24.04,ROYAL MAIL, 
East Lindsey District Council,http://statistics.data.gov.uk/id/local-authority/32UC,Development Control,Postages,18/04/13,IJ00020934,448.43,ROYAL MAIL, 
East Lindsey District Council,http://statistics.data.gov.uk/id/local-authority/32UC,Corporate Management,Postages,18/04/13,IJ00020934,468.11,ROYAL MAIL, 
East Lindsey District Council,http://statistics.data.gov.uk/id/local-authority/32UC,Corporate Management,Postages,18/04/13,IJ00020934,318.18,ROYAL MAIL, 
East Lindsey District Council,http://statistics.data.gov.uk/id/local-authority/32UC,Corporate Management,Postages,18/04/13,IJ00020934,1153.38,ROYAL MAIL, 
East Lindsey District Council,http://statistics.data.gov.uk/id/local-authority/32UC,Corporate Management,Postages,18/04/13,IJ00020934,1309.64,ROYAL MAIL, 
East Lindsey District Council,http://statistics.data.gov.uk/id/local-authority/32UC,Corporate Management,Postages,18/04/13,IJ00020934,141.27,ROYAL MAIL, 
East Lindsey District Council,http://statistics.data.gov.uk/id/local-authority/32UC,Corporate Management,Postages,18/04/13,IJ00020934,36.28,ROYAL MAIL, 
East Lindsey District Council,http://statistics.data.gov.uk/id/local-authority/32UC,Corporate Management,Postages,18/04/13,IJ00020934,388.18,ROYAL MAIL, 
East Lindsey District Council,http://statistics.data.gov.uk/id/local-authority/32UC,Corporate Accounting,Postages,18/04/13,IJ00021320,4.27,ROYAL MAIL, 
East Lindsey District Council,http://statistics.data.gov.uk/id/local-authority/32UC,Corporate Management,Postages,18/04/13,IJ00021320,5983.29,ROYAL MAIL, 
East Lindsey District Council,http://statistics.data.gov.uk/id/local-authority/32UC,Corporate Management,Postages,18/04/13,IJ00021320,3076.58,ROYAL MAIL, 
East Lindsey District Council,http://statistics.data.gov.uk/id/local-authority/32UC,Corporate Management,Postages,18/04/13,IJ00021320,18929.83,ROYAL MAIL, 
East Lindsey District Council,http://statistics.data.gov.uk/id/local-authority/32UC,Corporate Management,Postages,18/04/13,IJ00021320,11701.09,ROYAL MAIL, 
East Lindsey District Council,http://statistics.data.gov.uk/id/local-authority/32UC,Corporate Management,Postages,18/04/13,IJ00021320,73.47,ROYAL MAIL, 
East Lindsey District Council,http://statistics.data.gov.uk/id/local-authority/32UC,Corporate Accounting,Grants and Contributions to Outside Bodies- No Service Recei,18/04/13,IJ00020960,1101.50,EASTVILLE MIDVILLE & NEW LEAKE PARISH C, 
East Lindsey District Council,http://statistics.data.gov.uk/id/local-authority/32UC,Corporate Management,Parish Council Precepts,18/04/13,IJ00021076,5148.50,EASTVILLE MIDVILLE & NEW LEAKE PARISH C, 
East Lindsey District Council,http://statistics.data.gov.uk/id/local-authority/32UC,Corporate Management,Parish Council Precepts,18/04/13,IJ00021058,800.00,BAUMBER PARISH COUNCIL, 
East Lindsey District Council,http://statistics.data.gov.uk/id/local-authority/32UC,Building Control,Subscriptions to Organisations and Other Bodies,18/04/13,IJ00021319,930.00,BSI MEMBERSHIP, 
East Lindsey District Council,http://statistics.data.gov.uk/id/local-authority/32UC,Hsg Advice & Homelessness TL,Rent and Lease Payments,18/04/13,IJ00021203,2488.50,LONGHURST HOMES, 
East Lindsey District Council,http://statistics.data.gov.uk/id/local-authority/32UC,Corporate Management,Parish Council Precepts,18/04/13,IJ00021160,8624.00,WAINFLEET ALL SAINTS TOWN COUNCIL, 
East Lindsey District Council,http://statistics.data.gov.uk/id/local-authority/32UC,Corporate Accounting,Grants and Contributions to Outside Bodies- No Service Recei,18/04/13,IJ00021041,2626.00,WAINFLEET ALL SAINTS TOWN COUNCIL, 
East Lindsey District Council,http://statistics.data.gov.uk/id/local-authority/32UC,Corporate Management,Parish Council Precepts,18/04/13,IJ00021147,1832.00,SWABY GROUP PARISH COUNCIL, 
East Lindsey District Council,http://statistics.data.gov.uk/id/local-authority/32UC,Corporate Management,Parish Council Precepts,18/04/13,IJ00021084,2585.00,GRAINTHORPE PARISH COUNCIL, 
East Lindsey District Council,http://statistics.data.gov.uk/id/local-authority/32UC,Corporate Management,Parish Council Precepts,18/04/13,IJ00021057,1194.00,ASTERBY GOULCEBY & RANBY PARISH COUNCIL, 
East Lindsey District Council,http://statistics.data.gov.uk/id/local-authority/32UC,Corporate Accounting,Grants and Contributions to Outside Bodies- No Service Recei,18/04/13,IJ00020976,2182.50,HOLTON LE CLAY PARISH COUNCIL, 
East Lindsey District Council,http://statistics.data.gov.uk/id/local-authority/32UC,Corporate Management,Parish Council Precepts,18/04/13,IJ00021091,22817.50,HOLTON LE CLAY PARISH COUNCIL, 
East Lindsey District Council,http://statistics.data.gov.uk/id/local-authority/32UC,Corporate Management,Lincolnshire Legal Services,18/04/13,IJ00021292,1047.00,LINCOLNSHIRE COUNTY COUNCIL, 
East Lindsey District Council,http://statistics.data.gov.uk/id/local-authority/32UC,Corporate Management,Rent Allowances,18/04/13,IJ00021292,12169.86,LINCOLNSHIRE COUNTY COUNCIL, 
East Lindsey District Council,http://statistics.data.gov.uk/id/local-authority/32UC,Corporate Accounting,Grants and Contributions to Outside Bodies- No Service Recei,18/04/13,IJ00020951,996.00,CARRINGTON PARISH COUNCIL, 
East Lindsey District Council,http://statistics.data.gov.uk/id/local-authority/32UC,Corporate Management,Parish Council Precepts,18/04/13,IJ00021066,5504.00,CARRINGTON PARISH COUNCIL, 
East Lindsey District Council,http://statistics.data.gov.uk/id/local-authority/32UC,Corporate Management,Parish Council Precepts,18/04/13,IJ00021163,1621.00,WEST ASHBY PARISH COUNCIL, 
East Lindsey District Council,http://statistics.data.gov.uk/id/local-authority/32UC,Corporate Management,Parish Council Precepts,18/04/13,IJ00021093,1225.00,HORSINGTON PARISH COUNCIL, 
East Lindsey District Council,http://statistics.data.gov.uk/id/local-authority/32UC,Corporate Accounting,Grants and Contributions to Outside Bodies- No Service Recei,18/04/13,IJ00020939,712.00,ADDLETHORPE PARISH COUNCIL, 
East Lindsey District Council,http://statistics.data.gov.uk/id/local-authority/32UC,Corporate Management,Parish Council Precepts,18/04/13,IJ00021053,4188.00,ADDLETHORPE PARISH COUNCIL, 
East Lindsey District Council,http://statistics.data.gov.uk/id/local-authority/32UC,Corporate Management,Parish Council Precepts,18/04/13,IJ00021145,5660.00,STICKNEY PARISH COUNCIL, 
East Lindsey District Council,http://statistics.data.gov.uk/id/local-authority/32UC,Corporate Accounting,Grants and Contributions to Outside Bodies- No Service Recei,18/04/13,IJ00021014,1090.00,STICKNEY PARISH COUNCIL, 
East Lindsey District Council,http://statistics.data.gov.uk/id/local-authority/32UC,Corporate Management,Parish Council Precepts,18/04/13,IJ00021124,3573.00,MUMBY PARISH COUNCIL, 
East Lindsey District Council,http://statistics.data.gov.uk/id/local-authority/32UC,Corporate Accounting,Grants and Contributions to Outside Bodies- No Service Recei,18/04/13,IJ00020993,732.00,MUMBY PARISH COUNCIL, 
East Lindsey District Council,http://statistics.data.gov.uk/id/local-authority/32UC,Environment Team Leader,Grants and Contributions to Outside Bodies- No Service Recei,18/04/13,IJ00021310,25000.00,GBM WASTE MANAGEMENT, 
East Lindsey District Council,http://statistics.data.gov.uk/id/local-authority/32UC,Corporate Management,Parish Council Precepts,18/04/13,IJ00021148,1867.00,TATHWELL & HAUGHAM PARISH COUNCIL, 
East Lindsey District Council,http://statistics.data.gov.uk/id/local-authority/32UC,Corporate Management,Parish Council Precepts,18/04/13,IJ00021136,13112.00,SIBSEY PARISH COUNCIL, 
East Lindsey District Council,http://statistics.data.gov.uk/id/local-authority/32UC,Corporate Accounting,Grants and Contributions to Outside Bodies- No Service Recei,18/04/13,IJ00021004,1452.00,SIBSEY PARISH COUNCIL, 
East Lindsey District Council,http://statistics.data.gov.uk/id/local-authority/32UC,Corporate Management,Parish Council Precepts,18/04/13,IJ00021119,8667.00,MAREHAM LE FEN PARISH COUNCIL, 
East Lindsey District Council,http://statistics.data.gov.uk/id/local-authority/32UC,Corporate Accounting,Grants and Contributions to Outside Bodies- No Service Recei,18/04/13,IJ00020989,833.00,MAREHAM LE FEN PARISH COUNCIL, 
East Lindsey District Council,http://statistics.data.gov.uk/id/local-authority/32UC,Corporate Management,Parish Council Precepts,18/04/13,IJ00021165,4222.00,WILDMORE PARISH COUNCIL, 
East Lindsey District Council,http://statistics.data.gov.uk/id/local-authority/32UC,Corporate Accounting,Grants and Contributions to Outside Bodies- No Service Recei,18/04/13,IJ00021046,578.00,WILDMORE PARISH COUNCIL, 
East Lindsey District Council,http://statistics.data.gov.uk/id/local-authority/32UC,Corporate Management,Parish Council Precepts,18/04/13,IJ00021079,4321.00,FOTHERBY PARISH COUNCIL, 
East Lindsey District Council,http://statistics.data.gov.uk/id/local-authority/32UC,Corporate Management,Parish Council Precepts,18/04/13,IJ00021082,2814.00,FULSTOW PARISH COUNCIL, 
East Lindsey District Council,http://statistics.data.gov.uk/id/local-authority/32UC,TL Property,Rent and Lease Payments,18/04/13,IJ00021173,5438.74,FRANKLIN HALL, 
East Lindsey District Council,http://statistics.data.gov.uk/id/local-authority/32UC,Corporate Accounting,Grants and Contributions to Outside Bodies- No Service Recei,18/04/13,IJ00020981,2324.00,INGOLDMELLS PARISH COUNCIL, 
East Lindsey District Council,http://statistics.data.gov.uk/id/local-authority/32UC,Corporate Management,Parish Council Precepts,18/04/13,IJ00021096,10176.00,INGOLDMELLS PARISH COUNCIL, 
East Lindsey District Council,http://statistics.data.gov.uk/id/local-authority/32UC,Corporate Accounting,Grants and Contributions to Outside Bodies- No Service Recei,18/04/13,IJ00020986,14551.00,LOUTH TOWN COUNCIL, 
East Lindsey District Council,http://statistics.data.gov.uk/id/local-authority/32UC,Corporate Management,Parish Council Precepts,18/04/13,IJ00021103,91601.00,LOUTH TOWN COUNCIL, 
East Lindsey District Council,http://statistics.data.gov.uk/id/local-authority/32UC,Corporate Management,Parish Council Precepts,18/04/13,IJ00021060,1456.00,BENNIWORTH PARISH COUNCIL, 
East Lindsey District Council,http://statistics.data.gov.uk/id/local-authority/32UC,Corporate Management,Parish Council Precepts,18/04/13,IJ00021140,935.00,SOUTH COCKERINGTON PARISH COUNCIL, 
East Lindsey District Council,http://statistics.data.gov.uk/id/local-authority/32UC,Corporate Management,Parish Council Precepts,18/04/13,IJ00021166,6472.00,WILLOUGHBY & DISTRICT PARISH COUNCIL, 
East Lindsey District Council,http://statistics.data.gov.uk/id/local-authority/32UC,Corporate Accounting,Grants and Contributions to Outside Bodies- No Service Recei,18/04/13,IJ00021047,828.00,WILLOUGHBY & DISTRICT PARISH COUNCIL, 
East Lindsey District Council,http://statistics.data.gov.uk/id/local-authority/32UC,Corporate Management,Parish Council Precepts,18/04/13,IJ00021052,546.00,ABY WITH GREENFIELD PARISH COUNCIL, 
East Lindsey District Council,http://statistics.data.gov.uk/id/local-authority/32UC,Corporate Management,Parish Council Precepts,18/04/13,IJ00021081,2370.00,FRITHVILLE & WESTVILLE PARISH COUNCIL, 
East Lindsey District Council,http://statistics.data.gov.uk/id/local-authority/32UC,Corporate Management,Parish Council Precepts,18/04/13,IJ00021098,2628.00,LANGRIVILLE PARISH COUNCIL, 
East Lindsey District Council,http://statistics.data.gov.uk/id/local-authority/32UC,Corporate Management,Parish Council Precepts,18/04/13,IJ00021116,3347.00,LUDFORD PARISH COUNCIL, 
East Lindsey District Council,http://statistics.data.gov.uk/id/local-authority/32UC,BALANCE  SHEET,Payroll Sacrifice Nursery Voucher,18/04/13,IJ00021299,3144.00,SODEXHO, 
East Lindsey District Council,http://statistics.data.gov.uk/id/local-authority/32UC,Corporate Management,Parish Council Precepts,18/04/13,IJ00021089,1517.00,HEMINGBY PARISH COUNCIL, 
East Lindsey District Council,http://statistics.data.gov.uk/id/local-authority/32UC,Neighbourhood Services,Materials and Consumables,18/04/13,IJ00021241,740.80,ESPO, 
East Lindsey District Council,http://statistics.data.gov.uk/id/local-authority/32UC,Corporate Accounting,Grants and Contributions to Outside Bodies- No Service Recei,18/04/13,IJ00020956,620.00,DONINGTON ON BAIN PARISH COUNCIL, 
East Lindsey District Council,http://statistics.data.gov.uk/id/local-authority/32UC,Corporate Management,Parish Council Precepts,18/04/13,IJ00021071,5033.00,DONINGTON ON BAIN PARISH COUNCIL, 
East Lindsey District Council,http://statistics.data.gov.uk/id/local-authority/32UC,Corporate Management,Parish Council Precepts,18/04/13,IJ00021155,1182.00,THORPE ST PETER PARISH COUNCIL, 
East Lindsey District Council,http://statistics.data.gov.uk/id/local-authority/32UC,Corporate Accounting,Grants and Contributions to Outside Bodies- No Service Recei,18/04/13,IJ00020964,1362.50,FRISKNEY PARISH COUNCIL, 
East Lindsey District Council,http://statistics.data.gov.uk/id/local-authority/32UC,Corporate Management,Parish Council Precepts,18/04/13,IJ00021080,7137.50,FRISKNEY PARISH COUNCIL, 
East Lindsey District Council,http://statistics.data.gov.uk/id/local-authority/32UC,Corporate Management,Parish Council Precepts,18/04/13,IJ00021078,3020.00,FIRSBY GROUP PARISH COUNCIL, 
East Lindsey District Council,http://statistics.data.gov.uk/id/local-authority/32UC,Corporate Management,Parish Council Precepts,18/04/13,IJ00021074,1323.00,EAST KEAL PARISH COUNCIL, 
East Lindsey District Council,http://statistics.data.gov.uk/id/local-authority/32UC,Leisure Operations,Other Miscellaneous Expenses,18/04/13,IJ00021321,691.57,DEE BEE, 
East Lindsey District Council,http://statistics.data.gov.uk/id/local-authority/32UC,Corporate Management,Parish Council Precepts,18/04/13,IJ00021151,6872.50,TETNEY PARISH COUNCIL, 
East Lindsey District Council,http://statistics.data.gov.uk/id/local-authority/32UC,Corporate Accounting,Grants and Contributions to Outside Bodies- No Service Recei,18/04/13,IJ00021026,627.50,TETNEY PARISH COUNCIL, 
East Lindsey District Council,http://statistics.data.gov.uk/id/local-authority/32UC,Information Technology,Computer Software Licence Costs,18/04/13,IJ00021190,9969.00,THE TECHNOLOGY FORGE LIMITED, 
East Lindsey District Council,http://statistics.data.gov.uk/id/local-authority/32UC,Corporate Management,Parish Council Precepts,18/04/13,IJ00021117,67814.00,MABLETHORPE & SUTTON TOWN COUNCIL, 
East Lindsey District Council,http://statistics.data.gov.uk/id/local-authority/32UC,Corporate Accounting,Grants and Contributions to Outside Bodies- No Service Recei,18/04/13,IJ00020975,17743.00,MABLETHORPE & SUTTON TOWN COUNCIL, 
East Lindsey District Council,http://statistics.data.gov.uk/id/local-authority/32UC,Corporate Accounting,Grants and Contributions to Outside Bodies- No Service Recei,18/04/13,IJ00020953,2991.00,CONINGSBY TOWN COUNCIL, 
East Lindsey District Council,http://statistics.data.gov.uk/id/local-authority/32UC,Corporate Management,Parish Council Precepts,18/04/13,IJ00021068,23509.00,CONINGSBY TOWN COUNCIL, 
East Lindsey District Council,http://statistics.data.gov.uk/id/local-authority/32UC,Corporate Management,Parish Council Precepts,18/04/13,IJ00021114,1920.00,LUDBOROUGH PARISH COUNCIL, 
East Lindsey District Council,http://statistics.data.gov.uk/id/local-authority/32UC,Waste Services Manager,Agency Staff,18/04/13,IJ00021013,7048.88,CLOSE INVOICE FINANCE LTD, 
East Lindsey District Council,http://statistics.data.gov.uk/id/local-authority/32UC,Corporate Accounting,Grants and Contributions to Outside Bodies- No Service Recei,18/04/13,IJ00020942,629.00,ANDERBY PARISH COUNCIL, 
East Lindsey District Council,http://statistics.data.gov.uk/id/local-authority/32UC,Corporate Management,Parish Council Precepts,18/04/13,IJ00021056,3471.00,ANDERBY PARISH COUNCIL, 
East Lindsey District Council,http://statistics.data.gov.uk/id/local-authority/32UC,Corporate Management,Parish Council Precepts,18/04/13,IJ00021101,2273.00,LITTLE CAWTHORPE PARISH COUNCIL, 
East Lindsey District Council,http://statistics.data.gov.uk/id/local-authority/32UC,Hsg Private Sector TL,Other Income,18/04/13,IJ00021251,-468.26,HUMBERSTONE BUILDING MAINTENANCE, 
East Lindsey District Council,http://statistics.data.gov.uk/id/local-authority/32UC,Hsg Private Sector TL,Grants and Contributions to Outside Bodies- No Service Recei,18/04/13,IJ00021251,5244.48,HUMBERSTONE BUILDING MAINTENANCE, 
East Lindsey District Council,http://statistics.data.gov.uk/id/local-authority/32UC,Corporate Management,Parish Council Precepts,18/04/13,IJ00021064,1388.00,BUCKNALL PARISH COUNCIL, 
East Lindsey District Council,http://statistics.data.gov.uk/id/local-authority/32UC,Corporate Management,Parish Council Precepts,18/04/13,IJ00021085,960.00,GREAT & LITTLE CARLTON PARISH COUNCIL, 
East Lindsey District Council,http://statistics.data.gov.uk/id/local-authority/32UC,Corporate Management,Parish Council Precepts,18/04/13,IJ00021121,5100.50,MARSHCHAPEL PARISH COUNCIL, 
East Lindsey District Council,http://statistics.data.gov.uk/id/local-authority/32UC,Corporate Accounting,Grants and Contributions to Outside Bodies- No Service Recei,18/04/13,IJ00020990,624.50,MARSHCHAPEL PARISH COUNCIL, 
East Lindsey District Council,http://statistics.data.gov.uk/id/local-authority/32UC,Corporate Management,Parish Council Precepts,18/04/13,IJ00021131,1462.00,PARTNEY & DALBY PARISH COUNCIL, 
East Lindsey District Council,http://statistics.data.gov.uk/id/local-authority/32UC,Corporate Management,Parish Council Precepts,18/04/13,IJ00021132,1882.00,REVESBY PARISH COUNCIL, 
East Lindsey District Council,http://statistics.data.gov.uk/id/local-authority/32UC,Corporate Management,Parish Council Precepts,18/04/13,IJ00021156,2024.00,TOYNTON ALL SAINTS PARISH COUNCIL, 
East Lindsey District Council,http://statistics.data.gov.uk/id/local-authority/32UC,Corporate Management,Parish Council Precepts,18/04/13,IJ00021129,7771.50,NORTH THORESBY PARISH COUNCIL, 
East Lindsey District Council,http://statistics.data.gov.uk/id/local-authority/32UC,Corporate Accounting,Grants and Contributions to Outside Bodies- No Service Recei,18/04/13,IJ00020997,896.00,NORTH THORESBY PARISH COUNCIL, 
East Lindsey District Council,http://statistics.data.gov.uk/id/local-authority/32UC,Corporate Management,Parish Council Precepts,18/04/13,IJ00021083,619.00,GAYTON LE MARSH PARISH MEETING, 
East Lindsey District Council,http://statistics.data.gov.uk/id/local-authority/32UC,Corporate Accounting,Grants and Contributions to Outside Bodies- No Service Recei,18/04/13,IJ00020952,7979.00,CHAPEL ST LEONARDS PARISH COUNCIL, 
East Lindsey District Council,http://statistics.data.gov.uk/id/local-authority/32UC,Corporate Management,Parish Council Precepts,18/04/13,IJ00021067,29821.00,CHAPEL ST LEONARDS PARISH COUNCIL, 
East Lindsey District Council,http://statistics.data.gov.uk/id/local-authority/32UC,Corporate Management,Parish Council Precepts,18/04/13,IJ00021149,7684.50,TATTERSHALL WITH THORPE PARISH COUNCIL, 
East Lindsey District Council,http://statistics.data.gov.uk/id/local-authority/32UC,Corporate Accounting,Grants and Contributions to Outside Bodies- No Service Recei,18/04/13,IJ00021022,827.50,TATTERSHALL WITH THORPE PARISH COUNCIL, 
East Lindsey District Council,http://statistics.data.gov.uk/id/local-authority/32UC,Planning & Housing Policy Manager,Grants and Contributions to Outside Bodies- No Service Recei,18/04/13,IJ00021272,50000.00,WATERLOO HOUSING GROUP LTD, 
East Lindsey District Council,http://statistics.data.gov.uk/id/local-authority/32UC,"Performance, Governance & Commissioning",Grants and Contributions to Outside Bodies- No Service Recei,18/04/13,IJ00021174,1275.00,LOUTH & DISTRICT HOSPICE LTD, 
East Lindsey District Council,http://statistics.data.gov.uk/id/local-authority/32UC,Corporate Accounting,Grants and Contributions to Outside Bodies- No Service Recei,18/04/13,IJ00020977,7490.50,HORNCASTLE TOWN COUNCIL, 
East Lindsey District Council,http://statistics.data.gov.uk/id/local-authority/32UC,Corporate Management,Parish Council Precepts,18/04/13,IJ00021092,48077.00,HORNCASTLE TOWN COUNCIL, 
East Lindsey District Council,http://statistics.data.gov.uk/id/local-authority/32UC,Corporate Management,Parish Council Precepts,18/04/13,IJ00021077,1484.00,ELKINGTON PARISH COUNCIL, 
East Lindsey District Council,http://statistics.data.gov.uk/id/local-authority/32UC,Corporate Accounting,Grants and Contributions to Outside Bodies- No Service Recei,18/04/13,IJ00020980,652.00,HUTTOFT PARISH COUNCIL, 
East Lindsey District Council,http://statistics.data.gov.uk/id/local-authority/32UC,Corporate Management,Parish Council Precepts,18/04/13,IJ00021095,4248.00,HUTTOFT PARISH COUNCIL, 
East Lindsey District Council,http://statistics.data.gov.uk/id/local-authority/32UC,Corporate Management,Parish Council Precepts,18/04/13,IJ00021144,3008.00,STICKFORD PARISH COUNCIL, 
East Lindsey District Council,http://statistics.data.gov.uk/id/local-authority/32UC,Corporate Management,Parish Council Precepts,18/04/13,IJ00021139,4924.00,SKIDBROOKE CUM SALTFLEET HAVEN P.C., 
East Lindsey District Council,http://statistics.data.gov.uk/id/local-authority/32UC,Corporate Accounting,Grants and Contributions to Outside Bodies- No Service Recei,18/04/13,IJ00021006,926.00,SKIDBROOKE CUM SALTFLEET HAVEN P.C., 
East Lindsey District Council,http://statistics.data.gov.uk/id/local-authority/32UC,Corporate Management,Parish Council Precepts,18/04/13,IJ00021152,6620.00,THEDDLETHORPE PARISH COUNCIL, 
East Lindsey District Council,http://statistics.data.gov.uk/id/local-authority/32UC,Corporate Accounting,Grants and Contributions to Outside Bodies- No Service Recei,18/04/13,IJ00021027,980.00,THEDDLETHORPE PARISH COUNCIL, 
East Lindsey District Council,http://statistics.data.gov.uk/id/local-authority/32UC,Enforcement Team Leader,Payments to Bodies in Respect of Income Collected,18/04/13,IJ00021249,1786.47,INNES ENGLAND COMMERCIAL PROPERTY, 
East Lindsey District Council,http://statistics.data.gov.uk/id/local-authority/32UC,Corporate Management,Parish Council Precepts,18/04/13,IJ00021055,1864.00,ALVINGHAM PARISH COUNCIL, 
East Lindsey District Council,http://statistics.data.gov.uk/id/local-authority/32UC,Economic & Tourism,Subscriptions to Organisations and Other Bodies,18/04/13,IJ00021011,544.50,QUALITY IN TOURISM, 
East Lindsey District Council,http://statistics.data.gov.uk/id/local-authority/32UC,TL Property,Materials and Consumables,18/04/13,IJ00021247,3456.67,PHS DATASHRED, 
East Lindsey District Council,http://statistics.data.gov.uk/id/local-authority/32UC,Hsg Private Sector TL,Other Income,18/04/13,IJ00021258,-768.50,DOLPHIN MOBILITY EAST MIDLANDS, 
East Lindsey District Council,http://statistics.data.gov.uk/id/local-authority/32UC,Hsg Private Sector TL,Grants and Contributions to Outside Bodies- No Service Recei,18/04/13,IJ00021258,8607.20,DOLPHIN MOBILITY EAST MIDLANDS, 
East Lindsey District Council,http://statistics.data.gov.uk/id/local-authority/32UC,Hsg Private Sector TL,Other Income,18/04/13,IJ00021261,-380.68,DENNISS & MARWOOD, 
East Lindsey District Council,http://statistics.data.gov.uk/id/local-authority/32UC,Hsg Private Sector TL,Grants and Contributions to Outside Bodies- No Service Recei,18/04/13,IJ00021261,4263.64,DENNISS & MARWOOD, 
East Lindsey District Council,http://statistics.data.gov.uk/id/local-authority/32UC,Theatre Manager,Performers and Entertainers Fees,18/04/13,IJ00021197,12967.57,FLYING ENTERTAINMENT LTD, 
East Lindsey District Council,http://statistics.data.gov.uk/id/local-authority/32UC,Theatre Manager,Performers and Entertainers Fees,18/04/13,IJ00021197,-1020.00,FLYING ENTERTAINMENT LTD, 
East Lindsey District Council,http://statistics.data.gov.uk/id/local-authority/32UC,Corporate Management,Parish Council Precepts,18/04/13,IJ00021088,2897.00,HALTON HOLEGATE PARISH COUNCIL, 
East Lindsey District Council,http://statistics.data.gov.uk/id/local-authority/32UC,Leisure Operations,Other Miscellaneous Expenses,18/04/13,IJ00020992,673.43,AQUA VITA CAFE, 
East Lindsey District Council,http://statistics.data.gov.uk/id/local-authority/32UC,Corporate Management,Parish Council Precepts,18/04/13,IJ00021069,3150.00,COVENHAM PARISH COUNCIL, 
East Lindsey District Council,http://statistics.data.gov.uk/id/local-authority/32UC,Corporate Management,Parish Council Precepts,18/04/13,IJ00021157,1673.00,TOYNTON ST PETER PARISH COUNCIL, 
East Lindsey District Council,http://statistics.data.gov.uk/id/local-authority/32UC,Corporate Management,Parish Council Precepts,18/04/13,IJ00021135,1423.00,SCAMBLESBY PARISH COUNCIL, 
East Lindsey District Council,http://statistics.data.gov.uk/id/local-authority/32UC,Corporate Management,Parish Council Precepts,18/04/13,IJ00021128,10305.00,NORTH SOMERCOTES PARISH COUNCIL, 
East Lindsey District Council,http://statistics.data.gov.uk/id/local-authority/32UC,Corporate Accounting,Grants and Contributions to Outside Bodies- No Service Recei,18/04/13,IJ00020996,1563.00,NORTH SOMERCOTES PARISH COUNCIL, 
East Lindsey District Council,http://statistics.data.gov.uk/id/local-authority/32UC,Corporate Management,Parish Council Precepts,18/04/13,IJ00021059,2920.00,BELCHFORD & FULLETBY PARISH COUNCIL, 
East Lindsey District Council,http://statistics.data.gov.uk/id/local-authority/32UC,Corporate Management,Parish Council Precepts,18/04/13,IJ00021061,2636.00,BILSBY & FARLESTHORPE PARISH COUNCIL, 
East Lindsey District Council,http://statistics.data.gov.uk/id/local-authority/32UC,Corporate Management,Parish Council Precepts,18/04/13,IJ00021063,3662.00,BOLINGBROKE PARISH COUNCIL, 
East Lindsey District Council,http://statistics.data.gov.uk/id/local-authority/32UC,Corporate Accounting,Grants and Contributions to Outside Bodies- No Service Recei,18/04/13,IJ00020955,818.00,CROFT PARISH COUNCIL, 
East Lindsey District Council,http://statistics.data.gov.uk/id/local-authority/32UC,Corporate Management,Parish Council Precepts,18/04/13,IJ00021070,5845.00,CROFT PARISH COUNCIL, 
East Lindsey District Council,http://statistics.data.gov.uk/id/local-authority/32UC,Corporate Management,Parish Council Precepts,18/04/13,IJ00021072,3549.00,EAST & WEST BARKWITH PARISH COUNCIL, 
East Lindsey District Council,http://statistics.data.gov.uk/id/local-authority/32UC,Corporate Management,Parish Council Precepts,18/04/13,IJ00021075,2644.00,EAST KIRKBY PARISH COUNCIL, 
East Lindsey District Council,http://statistics.data.gov.uk/id/local-authority/32UC,Corporate Accounting,Grants and Contributions to Outside Bodies- No Service Recei,18/04/13,IJ00020974,2198.00,HOGSTHORPE PARISH COUNCIL, 
East Lindsey District Council,http://statistics.data.gov.uk/id/local-authority/32UC,Corporate Management,Parish Council Precepts,18/04/13,IJ00021090,9802.00,HOGSTHORPE PARISH COUNCIL, 
East Lindsey District Council,http://statistics.data.gov.uk/id/local-authority/32UC,Corporate Management,Parish Council Precepts,18/04/13,IJ00021100,4108.00,LEGBOURNE PARISH COUNCIL, 
East Lindsey District Council,http://statistics.data.gov.uk/id/local-authority/32UC,Corporate Management,Parish Council Precepts,18/04/13,IJ00021118,2540.00,MALTBY LE MARSH PARISH COUNCIL, 
East Lindsey District Council,http://statistics.data.gov.uk/id/local-authority/32UC,Corporate Management,Parish Council Precepts,18/04/13,IJ00021141,2091.00,SOUTH SOMERCOTES PARISH COUNCIL, 
East Lindsey District Council,http://statistics.data.gov.uk/id/local-authority/32UC,Corporate Management,Parish Council Precepts,18/04/13,IJ00021142,600.00,SOUTH WILLINGHAM PARISH COUNCIL, 
East Lindsey District Council,http://statistics.data.gov.uk/id/local-authority/32UC,Corporate Management,Parish Council Precepts,18/04/13,IJ00021159,3493.00,UTTERBY PARISH COUNCIL, 
East Lindsey District Council,http://statistics.data.gov.uk/id/local-authority/32UC,Corporate Management,Parish Council Precepts,18/04/13,IJ00021153,2032.00,THIMBLEBY PARISH COUNCIL, 
East Lindsey District Council,http://statistics.data.gov.uk/id/local-authority/32UC,Corporate Management,Parish Council Precepts,18/04/13,IJ00021164,2272.00,WEST KEAL PARISH COUNCIL, 
East Lindsey District Council,http://statistics.data.gov.uk/id/local-authority/32UC,Corporate Management,Parish Council Precepts,18/04/13,IJ00021167,1816.00,WITHERN WITH STAIN PARISH COUNCIL, 
East Lindsey District Council,http://statistics.data.gov.uk/id/local-authority/32UC,Corporate Management,Parish Council Precepts,18/04/13,IJ00021169,10197.00,WRAGBY PARISH COUNCIL, 
East Lindsey District Council,http://statistics.data.gov.uk/id/local-authority/32UC,Corporate Accounting,Grants and Contributions to Outside Bodies- No Service Recei,18/04/13,IJ00021051,1603.00,WRAGBY PARISH COUNCIL, 
East Lindsey District Council,http://statistics.data.gov.uk/id/local-authority/32UC,Hsg Private Sector TL,Other Income,18/04/13,IJ00021256,-520.56,THM CONSTRUCTION, 
East Lindsey District Council,http://statistics.data.gov.uk/id/local-authority/32UC,Hsg Private Sector TL,Grants and Contributions to Outside Bodies- No Service Recei,18/04/13,IJ00021256,5830.26,THM CONSTRUCTION, 
East Lindsey District Council,http://statistics.data.gov.uk/id/local-authority/32UC,"Performance, Governance & Commissioning",Grants and Contributions to Outside Bodies- No Service Recei,18/04/13,IJ00021177,1000.00,HORNCASTLE LUNCHEON CLUB, 
East Lindsey District Council,http://statistics.data.gov.uk/id/local-authority/32UC,Corporate Management,Parish Council Precepts,18/04/13,IJ00021134,7974.00,SALTFLEETBY PARISH COUNCIL, 
East Lindsey District Council,http://statistics.data.gov.uk/id/local-authority/32UC,Corporate Accounting,Grants and Contributions to Outside Bodies- No Service Recei,18/04/13,IJ00021002,1026.00,SALTFLEETBY PARISH COUNCIL, 
East Lindsey District Council,http://statistics.data.gov.uk/id/local-authority/32UC,Economic & Tourism,Professional & Contractors Fees,18/04/13,IJ00021278,775.40,EASY CLEAN MARSHCHAPEL LTD, 
East Lindsey District Council,http://statistics.data.gov.uk/id/local-authority/32UC,Economic & Tourism,Professional & Contractors Fees,18/04/13,IJ00021281,711.00,EASY CLEAN MARSHCHAPEL LTD, 
East Lindsey District Council,http://statistics.data.gov.uk/id/local-authority/32UC,Theatre Manager,Performers and Entertainers Fees,18/04/13,IJ00021195,1176.01,AMANDE CONCERTS UK, 
East Lindsey District Council,http://statistics.data.gov.uk/id/local-authority/32UC,Theatre Manager,Performers and Entertainers Fees,18/04/13,IJ00021195,-210.00,AMANDE CONCERTS UK, 
East Lindsey District Council,http://statistics.data.gov.uk/id/local-authority/32UC,Commercial Team Leader,Other Private Contractors,18/04/13,IJ00021313,925.00,SKEGNESS & DISTRICT FUNERAL SERVICES, 
East Lindsey District Council,http://statistics.data.gov.uk/id/local-authority/32UC,Corporate Accounting,Professional & Contractors Fees,18/04/13,IJ00021179,747.00,KINGS ARMOURED SECURITY SERVICES LTD, 
East Lindsey District Council,http://statistics.data.gov.uk/id/local-authority/32UC,Corporate Management,Parish Council Precepts,18/04/13,IJ00021162,552.00,WELTON LE WOLD PARISH MEETING, 
East Lindsey District Council,http://statistics.data.gov.uk/id/local-authority/32UC,Economic & Tourism,Other Miscellaneous Expenses,18/04/13,IJ00021200,380.00,EAST LINCS RURAL TRAINING, 
East Lindsey District Council,http://statistics.data.gov.uk/id/local-authority/32UC,Economic & Tourism,Other Miscellaneous Expenses,18/04/13,IJ00021200,405.60,EAST LINCS RURAL TRAINING, 
East Lindsey District Council,http://statistics.data.gov.uk/id/local-authority/32UC,"Performance, Governance & Commissioning",Grants and Contributions to Outside Bodies- No Service Recei,18/04/13,IJ00021297,951.60,WRAGBY & DISTRICT SWIMMING CLUB, 
East Lindsey District Council,http://statistics.data.gov.uk/id/local-authority/32UC,Economic & Tourism,Other Miscellaneous Expenses,18/04/13,IJ00021194,946.15,CBS OUTDOOR LIMITED, 
East Lindsey District Council,http://statistics.data.gov.uk/id/local-authority/32UC,TL Property,Electricity,18/04/13,IJ00021234,2722.15,NPOWER LTD, 
East Lindsey District Council,http://statistics.data.gov.uk/id/local-authority/32UC,Waste Services Manager,Maintenance,18/04/13,IJ00021239,535.57,MAY GURNEY FLEET & PASSENGER SERVICES LTD, 
East Lindsey District Council,http://statistics.data.gov.uk/id/local-authority/32UC,Theatre Manager,Performers and Entertainers Fees,18/04/13,IJ00021199,22500.00,HELICON MOUNTAIN LTD, 
East Lindsey District Council,http://statistics.data.gov.uk/id/local-authority/32UC,Enforcement Team Leader,Fuel & Oil,18/04/13,IJ00020826,359.63,THE RIGHT FUELCARD COMPANY LTD, 
East Lindsey District Council,http://statistics.data.gov.uk/id/local-authority/32UC,Enforcement Team Leader,Fuel & Oil,18/04/13,IJ00020826,557.79,THE RIGHT FUELCARD COMPANY LTD, 
East Lindsey District Council,http://statistics.data.gov.uk/id/local-authority/32UC,Hsg Advice & Homelessness TL,Fuel & Oil,18/04/13,IJ00020826,128.73,THE RIGHT FUELCARD COMPANY LTD, 
East Lindsey District Council,http://statistics.data.gov.uk/id/local-authority/32UC,Theatre Manager,Fuel & Oil,18/04/13,IJ00020826,57.97,THE RIGHT FUELCARD COMPANY LTD, 
East Lindsey District Council,http://statistics.data.gov.uk/id/local-authority/32UC,Neighbourhood Services,Fuel & Oil,18/04/13,IJ00020826,3090.77,THE RIGHT FUELCARD COMPANY LTD, 
East Lindsey District Council,http://statistics.data.gov.uk/id/local-authority/32UC,Neighbourhood Services,Fuel & Oil,18/04/13,IJ00020826,2410.18,THE RIGHT FUELCARD COMPANY LTD, 
East Lindsey District Council,http://statistics.data.gov.uk/id/local-authority/32UC,"Performance, Governance & Commissioning",Grants and Contributions to Outside Bodies- No Service Recei,18/04/13,IJ00021302,524.99,MABLETHORPE YOUNG AT HEART CLUB, 
East Lindsey District Council,http://statistics.data.gov.uk/id/local-authority/32UC,Information Technology,Computer Hardware Maintenance,18/04/13,IJ00021178,1920.00,Full Control Networks Distribution Ltd, 
East Lindsey District Council,http://statistics.data.gov.uk/id/local-authority/32UC,"Performance, Governance & Commissioning",Grants and Contributions to Outside Bodies- No Service Recei,18/04/13,IJ00021304,1000.00,UTTERBY ST ANDREWS HERITAGE FUND, 
East Lindsey District Council,http://statistics.data.gov.uk/id/local-authority/32UC,"Performance, Governance & Commissioning",Grants and Contributions to Outside Bodies- No Service Recei,18/04/13,IJ00021305,600.00,JANE AUSTEN SOCIETY EUROPE, 
East Lindsey District Council,http://statistics.data.gov.uk/id/local-authority/32UC,"Performance, Governance & Commissioning",Grants and Contributions to Outside Bodies- No Service Recei,18/04/13,IJ00021301,500.00,LINCOLNSHIRE TAEKWONDO ASSOCIATION, 
East Lindsey District Council,http://statistics.data.gov.uk/id/local-authority/32UC,BALANCE  SHEET,Other Miscellaneous Expenses,18/04/13,IJ00021311,7000.00,Louth Volks World Ltd, 
East Lindsey District Council,http://statistics.data.gov.uk/id/local-authority/32UC,Corporate Accounting,Compass Point Business Services,19/04/13,IJ00021332,421415.96,COMPASS POINT BUSINESS SERVICES, 
East Lindsey District Council,http://statistics.data.gov.uk/id/local-authority/32UC,Capital WIP,Works to Buildings (Sub Contractors),25/04/13,IJ00021445,1588.00,J MELTON LTD, 
East Lindsey District Council,http://statistics.data.gov.uk/id/local-authority/32UC,Economic & Tourism,Grants and Contributions- Where a Service is Received,25/04/13,IJ00021399,516.00,HERITAGE TRUST OF LINCOLNSHIRE LTD, 
East Lindsey District Council,http://statistics.data.gov.uk/id/local-authority/32UC,Information Technology,Telephones,25/04/13,IJ00021465,999.00,CABLE & WIRELESS COMMUNICATIONS, 
East Lindsey District Council,http://statistics.data.gov.uk/id/local-authority/32UC,Hsg Private Sector TL,Grants and Contributions to Outside Bodies- No Service Recei,25/04/13,IJ00021469,9475.99,M & M GRANTHAM, 
East Lindsey District Council,http://statistics.data.gov.uk/id/local-authority/32UC,Hsg Private Sector TL,Other Income,25/04/13,IJ00021472,-371.05,M & M GRANTHAM, 
East Lindsey District Council,http://statistics.data.gov.uk/id/local-authority/32UC,Hsg Private Sector TL,Grants and Contributions to Outside Bodies- No Service Recei,25/04/13,IJ00021472,4155.72,M & M GRANTHAM, 
East Lindsey District Council,http://statistics.data.gov.uk/id/local-authority/32UC,Economic & Tourism,Postages,25/04/13,IJ00021430,526.12,ROYAL MAIL, 
East Lindsey District Council,http://statistics.data.gov.uk/id/local-authority/32UC,Corporate Management,Subscriptions to Organisations and Other Bodies,25/04/13,IJ00021345,10450.00,LOCAL GOVERNMENT ASSOCIATION, 
East Lindsey District Council,http://statistics.data.gov.uk/id/local-authority/32UC,Information Technology,Computer Hardware Purchase,25/04/13,IJ00021395,1801.28,DELL COMPUTER CORPORATION LTD, 
East Lindsey District Council,http://statistics.data.gov.uk/id/local-authority/32UC,Enforcement Team Leader,Professional & Contractors Fees,25/04/13,IJ00021350,3456.00,LINCOLNSHIRE COUNTY COUNCIL, 
East Lindsey District Council,http://statistics.data.gov.uk/id/local-authority/32UC,Waste Services Manager,Fuel & Oil,25/04/13,IJ00021343,7885.50,WATSON PETROLEUM LTD, 
East Lindsey District Council,http://statistics.data.gov.uk/id/local-authority/32UC,Waste Services Manager,Fuel & Oil,25/04/13,IJ00021344,20292.77,WATSON PETROLEUM LTD, 
East Lindsey District Council,http://statistics.data.gov.uk/id/local-authority/32UC,Theatre Manager,Electricity,25/04/13,IJ00021473,1480.34,SOUTHERN ELECTRIC PLC, 
East Lindsey District Council,http://statistics.data.gov.uk/id/local-authority/32UC,Leisure Operations,Electricity,25/04/13,IJ00021473,2882.94,SOUTHERN ELECTRIC PLC, 
East Lindsey District Council,http://statistics.data.gov.uk/id/local-authority/32UC,Neighbourhood Services,Electricity,25/04/13,IJ00021473,211.19,SOUTHERN ELECTRIC PLC, 
East Lindsey District Council,http://statistics.data.gov.uk/id/local-authority/32UC,Theatre Manager,Electricity,25/04/13,IJ00021473,52.80,SOUTHERN ELECTRIC PLC, 
East Lindsey District Council,http://statistics.data.gov.uk/id/local-authority/32UC,Neighbourhood Services,Electricity,25/04/13,IJ00021473,-83.35,SOUTHERN ELECTRIC PLC, 
East Lindsey District Council,http://statistics.data.gov.uk/id/local-authority/32UC,TL Property,Electricity,25/04/13,IJ00021473,367.78,SOUTHERN ELECTRIC PLC, 
East Lindsey District Council,http://statistics.data.gov.uk/id/local-authority/32UC,TL Property,Electricity,25/04/13,IJ00021473,119.67,SOUTHERN ELECTRIC PLC, 
East Lindsey District Council,http://statistics.data.gov.uk/id/local-authority/32UC,TL Property,Electricity,25/04/13,IJ00021473,422.69,SOUTHERN ELECTRIC PLC, 
East Lindsey District Council,http://statistics.data.gov.uk/id/local-authority/32UC,Leisure Operations,Electricity,25/04/13,IJ00021473,744.27,SOUTHERN ELECTRIC PLC, 
East Lindsey District Council,http://statistics.data.gov.uk/id/local-authority/32UC,Economic & Tourism,Electricity,25/04/13,IJ00021473,1461.44,SOUTHERN ELECTRIC PLC, 
East Lindsey District Council,http://statistics.data.gov.uk/id/local-authority/32UC,TL Property,Electricity,25/04/13,IJ00021353,-168.61,SOUTHERN ELECTRIC PLC, 
East Lindsey District Council,http://statistics.data.gov.uk/id/local-authority/32UC,Leisure Operations,Electricity,25/04/13,IJ00021353,1229.37,SOUTHERN ELECTRIC PLC, 
East Lindsey District Council,http://statistics.data.gov.uk/id/local-authority/32UC,Leisure Operations,Electricity,25/04/13,IJ00021353,-396.69,SOUTHERN ELECTRIC PLC, 
East Lindsey District Council,http://statistics.data.gov.uk/id/local-authority/32UC,Neighbourhood Services,Electricity,25/04/13,IJ00021353,46.85,SOUTHERN ELECTRIC PLC, 
East Lindsey District Council,http://statistics.data.gov.uk/id/local-authority/32UC,TL Property,Electricity,25/04/13,IJ00021353,3894.25,SOUTHERN ELECTRIC PLC, 
East Lindsey District Council,http://statistics.data.gov.uk/id/local-authority/32UC,TL Property,Electricity,25/04/13,IJ00021353,86.35,SOUTHERN ELECTRIC PLC, 
East Lindsey District Council,http://statistics.data.gov.uk/id/local-authority/32UC,TL Property,Electricity,25/04/13,IJ00021353,-66.68,SOUTHERN ELECTRIC PLC, 
East Lindsey District Council,http://statistics.data.gov.uk/id/local-authority/32UC,Waste Services Manager,Electricity,25/04/13,IJ00021353,62.77,SOUTHERN ELECTRIC PLC, 
East Lindsey District Council,http://statistics.data.gov.uk/id/local-authority/32UC,Waste Services Manager,Electricity,25/04/13,IJ00021353,-125.90,SOUTHERN ELECTRIC PLC, 
East Lindsey District Council,http://statistics.data.gov.uk/id/local-authority/32UC,TL Property,Electricity,25/04/13,IJ00021353,-233.38,SOUTHERN ELECTRIC PLC, 
East Lindsey District Council,http://statistics.data.gov.uk/id/local-authority/32UC,Neighbourhood Services,Electricity,25/04/13,IJ00021466,487.47,SOUTHERN ELECTRIC PLC, 
East Lindsey District Council,http://statistics.data.gov.uk/id/local-authority/32UC,Economic & Tourism,Electricity,25/04/13,IJ00021466,499.66,SOUTHERN ELECTRIC PLC, 
East Lindsey District Council,http://statistics.data.gov.uk/id/local-authority/32UC,Economic & Tourism,Electricity,25/04/13,IJ00021466,409.37,SOUTHERN ELECTRIC PLC, 
East Lindsey District Council,http://statistics.data.gov.uk/id/local-authority/32UC,Neighbourhood Services,Electricity,25/04/13,IJ00021466,116.44,SOUTHERN ELECTRIC PLC, 
East Lindsey District Council,http://statistics.data.gov.uk/id/local-authority/32UC,Neighbourhood Services,Electricity,25/04/13,IJ00021466,246.51,SOUTHERN ELECTRIC PLC, 
East Lindsey District Council,http://statistics.data.gov.uk/id/local-authority/32UC,Neighbourhood Services,Electricity,25/04/13,IJ00021466,795.55,SOUTHERN ELECTRIC PLC, 
East Lindsey District Council,http://statistics.data.gov.uk/id/local-authority/32UC,Neighbourhood Services,Electricity,25/04/13,IJ00021466,-178.74,SOUTHERN ELECTRIC PLC, 
East Lindsey District Council,http://statistics.data.gov.uk/id/local-authority/32UC,Enforcement Team Leader,Electricity,25/04/13,IJ00021466,340.94,SOUTHERN ELECTRIC PLC, 
East Lindsey District Council,http://statistics.data.gov.uk/id/local-authority/32UC,Enforcement Team Leader,Electricity,25/04/13,IJ00021466,-76.61,SOUTHERN ELECTRIC PLC, 
East Lindsey District Council,http://statistics.data.gov.uk/id/local-authority/32UC,Neighbourhood Services,Electricity,25/04/13,IJ00021466,244.88,SOUTHERN ELECTRIC PLC, 
East Lindsey District Council,http://statistics.data.gov.uk/id/local-authority/32UC,Leisure Operations,Electricity,25/04/13,IJ00021481,5155.98,SOUTHERN ELECTRIC PLC, 
East Lindsey District Council,http://statistics.data.gov.uk/id/local-authority/32UC,Neighbourhood Services,Electricity,25/04/13,IJ00021481,1230.00,SOUTHERN ELECTRIC PLC, 
East Lindsey District Council,http://statistics.data.gov.uk/id/local-authority/32UC,Neighbourhood Services,Electricity,25/04/13,IJ00021481,13.01,SOUTHERN ELECTRIC PLC, 
East Lindsey District Council,http://statistics.data.gov.uk/id/local-authority/32UC,TL Property,Electricity,25/04/13,IJ00021481,34.06,SOUTHERN ELECTRIC PLC, 
East Lindsey District Council,http://statistics.data.gov.uk/id/local-authority/32UC,Neighbourhood Services,Electricity,25/04/13,IJ00021481,143.40,SOUTHERN ELECTRIC PLC, 
East Lindsey District Council,http://statistics.data.gov.uk/id/local-authority/32UC,TL Property,Electricity,25/04/13,IJ00021481,33.21,SOUTHERN ELECTRIC PLC, 
East Lindsey District Council,http://statistics.data.gov.uk/id/local-authority/32UC,Neighbourhood Services,Electricity,25/04/13,IJ00021481,227.44,SOUTHERN ELECTRIC PLC, 
East Lindsey District Council,http://statistics.data.gov.uk/id/local-authority/32UC,TL Property,Electricity,25/04/13,IJ00021481,1141.90,SOUTHERN ELECTRIC PLC, 
East Lindsey District Council,http://statistics.data.gov.uk/id/local-authority/32UC,Neighbourhood Services,Electricity,25/04/13,IJ00021481,141.66,SOUTHERN ELECTRIC PLC, 
East Lindsey District Council,http://statistics.data.gov.uk/id/local-authority/32UC,Neighbourhood Services,Electricity,25/04/13,IJ00021481,177.94,SOUTHERN ELECTRIC PLC, 
East Lindsey District Council,http://statistics.data.gov.uk/id/local-authority/32UC,Customer Services Manager,Electricity,25/04/13,IJ00021489,397.50,SOUTHERN ELECTRIC PLC, 
East Lindsey District Council,http://statistics.data.gov.uk/id/local-authority/32UC,Economic & Tourism,Electricity,25/04/13,IJ00021489,10420.64,SOUTHERN ELECTRIC PLC, 
East Lindsey District Council,http://statistics.data.gov.uk/id/local-authority/32UC,Waste Services Manager,Electricity,25/04/13,IJ00021489,27.58,SOUTHERN ELECTRIC PLC, 
East Lindsey District Council,http://statistics.data.gov.uk/id/local-authority/32UC,TL Property,Electricity,25/04/13,IJ00021489,28.09,SOUTHERN ELECTRIC PLC, 
East Lindsey District Council,http://statistics.data.gov.uk/id/local-authority/32UC,TL Property,Electricity,25/04/13,IJ00021489,1032.62,SOUTHERN ELECTRIC PLC, 
East Lindsey District Council,http://statistics.data.gov.uk/id/local-authority/32UC,Economic & Tourism,Electricity,25/04/13,IJ00021489,834.78,SOUTHERN ELECTRIC PLC, 
East Lindsey District Council,http://statistics.data.gov.uk/id/local-authority/32UC,Neighbourhood Services,Electricity,25/04/13,IJ00021489,208.87,SOUTHERN ELECTRIC PLC, 
East Lindsey District Council,http://statistics.data.gov.uk/id/local-authority/32UC,Neighbourhood Services,Electricity,25/04/13,IJ00021489,150.17,SOUTHERN ELECTRIC PLC, 
East Lindsey District Council,http://statistics.data.gov.uk/id/local-authority/32UC,Enforcement Team Leader,Electricity,25/04/13,IJ00021489,27.78,SOUTHERN ELECTRIC PLC, 
East Lindsey District Council,http://statistics.data.gov.uk/id/local-authority/32UC,Neighbourhood Services,Electricity,25/04/13,IJ00021489,74.69,SOUTHERN ELECTRIC PLC, 
East Lindsey District Council,http://statistics.data.gov.uk/id/local-authority/32UC,TL Property,Electricity,25/04/13,IJ00021493,8.71,SOUTHERN ELECTRIC PLC, 
East Lindsey District Council,http://statistics.data.gov.uk/id/local-authority/32UC,Leisure Operations,Electricity,25/04/13,IJ00021493,21.35,SOUTHERN ELECTRIC PLC, 
East Lindsey District Council,http://statistics.data.gov.uk/id/local-authority/32UC,Leisure Operations,Electricity,25/04/13,IJ00021493,-1250.45,SOUTHERN ELECTRIC PLC, 
East Lindsey District Council,http://statistics.data.gov.uk/id/local-authority/32UC,Neighbourhood Services,Electricity,25/04/13,IJ00021493,957.46,SOUTHERN ELECTRIC PLC, 
East Lindsey District Council,http://statistics.data.gov.uk/id/local-authority/32UC,Neighbourhood Services,Electricity,25/04/13,IJ00021493,-178.84,SOUTHERN ELECTRIC PLC, 
East Lindsey District Council,http://statistics.data.gov.uk/id/local-authority/32UC,TL Property,Electricity,25/04/13,IJ00021493,-44.71,SOUTHERN ELECTRIC PLC, 
East Lindsey District Council,http://statistics.data.gov.uk/id/local-authority/32UC,Neighbourhood Services,Electricity,25/04/13,IJ00021493,-53.85,SOUTHERN ELECTRIC PLC, 
East Lindsey District Council,http://statistics.data.gov.uk/id/local-authority/32UC,TL Property,Electricity,25/04/13,IJ00021493,1220.92,SOUTHERN ELECTRIC PLC, 
East Lindsey District Council,http://statistics.data.gov.uk/id/local-authority/32UC,Neighbourhood Services,Electricity,25/04/13,IJ00021494,285.57,SOUTHERN ELECTRIC PLC, 
East Lindsey District Council,http://statistics.data.gov.uk/id/local-authority/32UC,TL Property,Electricity,25/04/13,IJ00021494,616.66,SOUTHERN ELECTRIC PLC, 
East Lindsey District Council,http://statistics.data.gov.uk/id/local-authority/32UC,Leisure Operations,Electricity,25/04/13,IJ00021494,11.60,SOUTHERN ELECTRIC PLC, 
East Lindsey District Council,http://statistics.data.gov.uk/id/local-authority/32UC,Leisure Operations,Advertising - Events,25/04/13,IJ00021468,561.00,HOLIDAY MAKER GUIDE, 
East Lindsey District Council,http://statistics.data.gov.uk/id/local-authority/32UC,Cultural & Related Services,Rent and Lease Payments,25/04/13,IJ00021400,252.00,INGOLDMELLS PARISH COUNCIL, 
East Lindsey District Council,http://statistics.data.gov.uk/id/local-authority/32UC,Neighbourhood Services,Rent and Lease Payments,25/04/13,IJ00021400,421.92,INGOLDMELLS PARISH COUNCIL, 
East Lindsey District Council,http://statistics.data.gov.uk/id/local-authority/32UC,Neighbourhood Services,Professional & Contractors Fees,25/04/13,IJ00021400,135.00,INGOLDMELLS PARISH COUNCIL, 
East Lindsey District Council,http://statistics.data.gov.uk/id/local-authority/32UC,Neighbourhood Services,Water and Sewerage Charges,25/04/13,IJ00021400,350.23,INGOLDMELLS PARISH COUNCIL, 
East Lindsey District Council,http://statistics.data.gov.uk/id/local-authority/32UC,Hsg Advice & Homelessness TL,Other agencies,25/04/13,IJ00021364,1592.00,LINCOLNSHIRE PROBATION BOARD, 
East Lindsey District Council,http://statistics.data.gov.uk/id/local-authority/32UC,Corporate Management,Subscriptions to Organisations and Other Bodies,25/04/13,IJ00021409,4995.00,LEICESTERSHIRE COUNTY COUNCIL, 
East Lindsey District Council,http://statistics.data.gov.uk/id/local-authority/32UC,Environment Team Leader,Furniture and Equipment,25/04/13,IJ00021341,5800.00,CAMPBELL ASSOCIATES, 
East Lindsey District Council,http://statistics.data.gov.uk/id/local-authority/32UC,Neighbourhood Services,Materials and Consumables,25/04/13,IJ00021423,28.50,ESPO, 
East Lindsey District Council,http://statistics.data.gov.uk/id/local-authority/32UC,Neighbourhood Services,Materials and Consumables,25/04/13,IJ00021423,1064.70,ESPO, 
East Lindsey District Council,http://statistics.data.gov.uk/id/local-authority/32UC,Leisure Operations,Cleaning Contract,25/04/13,IJ00021423,5.20,ESPO, 
East Lindsey District Council,http://statistics.data.gov.uk/id/local-authority/32UC,Neighbourhood Services,Materials and Consumables,25/04/13,IJ00021423,192.50,ESPO, 
East Lindsey District Council,http://statistics.data.gov.uk/id/local-authority/32UC,Leisure Operations,Stationery,25/04/13,IJ00021423,1.24,ESPO, 
East Lindsey District Council,http://statistics.data.gov.uk/id/local-authority/32UC,Leisure Operations,Cleaning Contract,25/04/13,IJ00021423,1.75,ESPO, 
East Lindsey District Council,http://statistics.data.gov.uk/id/local-authority/32UC,Corporate Management,Professional & Contractors Fees,25/04/13,IJ00021491,650.00,CHRISTOPHER DONKIN, 
East Lindsey District Council,http://statistics.data.gov.uk/id/local-authority/32UC,Waste Services Manager,Agency Staff,25/04/13,IJ00021365,6979.21,CLOSE INVOICE FINANCE LTD, 
East Lindsey District Council,http://statistics.data.gov.uk/id/local-authority/32UC,Waste Services Manager,Insurance,25/04/13,IJ00021501,2087.12,TRAVELERS INSURANCE COMPANY LIMITED, 
East Lindsey District Council,http://statistics.data.gov.uk/id/local-authority/32UC,Waste Services Manager,Insurance,25/04/13,IJ00021501,660.00,TRAVELERS INSURANCE COMPANY LIMITED, 
East Lindsey District Council,http://statistics.data.gov.uk/id/local-authority/32UC,Waste Services Manager,Insurance,25/04/13,IJ00021501,6256.20,TRAVELERS INSURANCE COMPANY LIMITED, 
East Lindsey District Council,http://statistics.data.gov.uk/id/local-authority/32UC,Enforcement Team Leader,Insurance,25/04/13,IJ00021501,250.00,TRAVELERS INSURANCE COMPANY LIMITED, 
East Lindsey District Council,http://statistics.data.gov.uk/id/local-authority/32UC,Leisure Operations,Insurance,25/04/13,IJ00021501,10900.00,TRAVELERS INSURANCE COMPANY LIMITED, 
East Lindsey District Council,http://statistics.data.gov.uk/id/local-authority/32UC,TL Property,Insurance,25/04/13,IJ00021501,7181.38,TRAVELERS INSURANCE COMPANY LIMITED, 
East Lindsey District Council,http://statistics.data.gov.uk/id/local-authority/32UC,Cultural & Related Services,Grants and Contributions to Outside Bodies- No Service Recei,25/04/13,IJ00021383,4345.48,ORCHESTRAS LIVE, 
East Lindsey District Council,http://statistics.data.gov.uk/id/local-authority/32UC,Environment Team Leader,Grants and Contributions to Outside Bodies- No Service Recei,25/04/13,IJ00021360,975.00,PELL PLANT HIRE LTD, 
East Lindsey District Council,http://statistics.data.gov.uk/id/local-authority/32UC,Environment Team Leader,Grants and Contributions to Outside Bodies- No Service Recei,25/04/13,IJ00021361,500.00,PELL PLANT HIRE LTD, 
East Lindsey District Council,http://statistics.data.gov.uk/id/local-authority/32UC,Enforcement Team Leader,Payments to Bodies in Respect of Income Collected,25/04/13,IJ00021496,1662.91,INNES ENGLAND COMMERCIAL PROPERTY, 
East Lindsey District Council,http://statistics.data.gov.uk/id/local-authority/32UC,Information Technology,Computer Software Purchase,25/04/13,IJ00021380,6750.00,VTEQ LIMITED, 
East Lindsey District Council,http://statistics.data.gov.uk/id/local-authority/32UC,Neighbourhood Services,Agency Staff,25/04/13,IJ00021419,680.22,THE WORKSHOP (WISBECH) LIMITED, 
East Lindsey District Council,http://statistics.data.gov.uk/id/local-authority/32UC,Neighbourhood Services,Agency Staff,25/04/13,IJ00021419,680.23,THE WORKSHOP (WISBECH) LIMITED, 
East Lindsey District Council,http://statistics.data.gov.uk/id/local-authority/32UC,Neighbourhood Services,Agency Staff,25/04/13,IJ00021334,484.77,THE WORKSHOP (WISBECH) LIMITED, 
East Lindsey District Council,http://statistics.data.gov.uk/id/local-authority/32UC,Neighbourhood Services,Agency Staff,25/04/13,IJ00021334,484.77,THE WORKSHOP (WISBECH) LIMITED, 
East Lindsey District Council,http://statistics.data.gov.uk/id/local-authority/32UC,Cultural & Related Services,Voluntary associations,25/04/13,IJ00021500,6000.00,WOODHALL SPA COTTAGE MUSEUM, 
East Lindsey District Council,http://statistics.data.gov.uk/id/local-authority/32UC,Hsg Private Sector TL,Grants and Contributions to Outside Bodies- No Service Recei,25/04/13,IJ00021475,5257.11,HARRIS BUILDING SERVICES, 
East Lindsey District Council,http://statistics.data.gov.uk/id/local-authority/32UC,Information Technology,Computer Software Licence Costs,25/04/13,IJ00021497,1000.00,IDOX INFORMATION SOLUTIONS LTD, 
East Lindsey District Council,http://statistics.data.gov.uk/id/local-authority/32UC,Neighbourhood Services,Staff Training Expenses,25/04/13,IJ00021368,446.00,SPALDING HORTICULTURAL TRAINING GROUP, 
East Lindsey District Council,http://statistics.data.gov.uk/id/local-authority/32UC,Neighbourhood Services,Staff Training Expenses,25/04/13,IJ00021368,149.00,SPALDING HORTICULTURAL TRAINING GROUP, 
East Lindsey District Council,http://statistics.data.gov.uk/id/local-authority/32UC,Neighbourhood Services,Water and Sewerage Charges,25/04/13,IJ00021434,1678.65,ANGLIAN WATER, 
East Lindsey District Council,http://statistics.data.gov.uk/id/local-authority/32UC,Leisure Operations,Water and Sewerage Charges,25/04/13,IJ00021435,4812.30,ANGLIAN WATER, 
East Lindsey District Council,http://statistics.data.gov.uk/id/local-authority/32UC,Economic & Tourism,Water and Sewerage Charges,25/04/13,IJ00021436,8537.90,ANGLIAN WATER, 
East Lindsey District Council,http://statistics.data.gov.uk/id/local-authority/32UC,Leisure Operations,Water and Sewerage Charges,25/04/13,IJ00021439,1025.45,ANGLIAN WATER, 
East Lindsey District Council,http://statistics.data.gov.uk/id/local-authority/32UC,Leisure Operations,Water and Sewerage Charges,25/04/13,IJ00021440,1107.98,ANGLIAN WATER, 
East Lindsey District Council,http://statistics.data.gov.uk/id/local-authority/32UC,Economic & Tourism,Other Miscellaneous Expenses,25/04/13,IJ00021464,1260.00,Rhubarb Theatre, 
East Lindsey District Council,http://statistics.data.gov.uk/id/local-authority/32UC,Economic & Tourism,Other Miscellaneous Expenses,25/04/13,IJ00021464,40.00,Rhubarb Theatre, 
East Lindsey District Council,http://statistics.data.gov.uk/id/local-authority/32UC,Hsg Private Sector TL,Other Income,25/04/13,IJ00021352,-414.77,MARK DONNER LTD, 
East Lindsey District Council,http://statistics.data.gov.uk/id/local-authority/32UC,Hsg Private Sector TL,Grants and Contributions to Outside Bodies- No Service Recei,25/04/13,IJ00021352,4645.43,MARK DONNER LTD, 
East Lindsey District Council,http://statistics.data.gov.uk/id/local-authority/32UC,Corporate Accounting,Government Housing Capital Receipt Pool,25/04/13,IJ00021495,917.78,GOVERNMENT BANKING SERVICE, 
East Lindsey District Council,http://statistics.data.gov.uk/id/local-authority/32UC,Economic & Tourism,External Printing and Design Costs,25/04/13,IJ00021405,667.73,ARTAVIA ADVERTISING, 
East Lindsey District Council,http://statistics.data.gov.uk/id/local-authority/32UC,Economic & Tourism,External Printing and Design Costs,25/04/13,IJ00021405,0.61,ARTAVIA ADVERTISING, 
East Lindsey District Council,http://statistics.data.gov.uk/id/local-authority/32UC,Economic & Tourism,External Printing and Design Costs,25/04/13,IJ00021406,1250.00,ARTAVIA ADVERTISING, 
East Lindsey District Council,http://statistics.data.gov.uk/id/local-authority/32UC,Economic & Tourism,External Printing and Design Costs,25/04/13,IJ00021406,1.25,ARTAVIA ADVERTISING, 
East Lindsey District Council,http://statistics.data.gov.uk/id/local-authority/32UC,Corporate Accounting,Subscriptions to Organisations and Other Bodies,25/04/13,IJ00021396,2245.00,LG FUTURES LTD, 
East Lindsey District Council,http://statistics.data.gov.uk/id/local-authority/32UC,Economic & Tourism,Advertising - Events,25/04/13,IJ00021407,3434.14,CARRIER DIRECT LIMITED, 
East Lindsey District Council,http://statistics.data.gov.uk/id/local-authority/32UC,Capital WIP,VAT Customs and Excise,25/04/13,IJ00021323,7025.40,Langwith Builders Ltd, 
East Lindsey District Council,http://statistics.data.gov.uk/id/local-authority/32UC,TL Property,Electricity,25/04/13,IJ00021426,50730.83,NPOWER LTD, 
East Lindsey District Council,http://statistics.data.gov.uk/id/local-authority/32UC,Neighbourhood Services,Electricity,25/04/13,IJ00021426,500.67,NPOWER LTD, 
East Lindsey District Council,http://statistics.data.gov.uk/id/local-authority/32UC,Enforcement Team Leader,Electricity,25/04/13,IJ00021426,57.11,NPOWER LTD, 
East Lindsey District Council,http://statistics.data.gov.uk/id/local-authority/32UC,Enforcement Team Leader,Electricity,25/04/13,IJ00021426,238.21,NPOWER LTD, 
East Lindsey District Council,http://statistics.data.gov.uk/id/local-authority/32UC,Enforcement Team Leader,Electricity,25/04/13,IJ00021426,238.21,NPOWER LTD, 
East Lindsey District Council,http://statistics.data.gov.uk/id/local-authority/32UC,Enforcement Team Leader,Electricity,25/04/13,IJ00021426,193.80,NPOWER LTD, 
East Lindsey District Council,http://statistics.data.gov.uk/id/local-authority/32UC,Enforcement Team Leader,Electricity,25/04/13,IJ00021426,278.11,NPOWER LTD, 
East Lindsey District Council,http://statistics.data.gov.uk/id/local-authority/32UC,Enforcement Team Leader,Electricity,25/04/13,IJ00021426,526.49,NPOWER LTD, 
East Lindsey District Council,http://statistics.data.gov.uk/id/local-authority/32UC,Enforcement Team Leader,Electricity,25/04/13,IJ00021426,649.31,NPOWER LTD, 
East Lindsey District Council,http://statistics.data.gov.uk/id/local-authority/32UC,Enforcement Team Leader,Electricity,25/04/13,IJ00021426,182.22,NPOWER LTD, 
East Lindsey District Council,http://statistics.data.gov.uk/id/local-authority/32UC,Enforcement Team Leader,Electricity,25/04/13,IJ00021426,472.12,NPOWER LTD, 
East Lindsey District Council,http://statistics.data.gov.uk/id/local-authority/32UC,Neighbourhood Services,Electricity,25/04/13,IJ00021426,45.66,NPOWER LTD, 
East Lindsey District Council,http://statistics.data.gov.uk/id/local-authority/32UC,Information Technology,Computer Software Licence Costs,25/04/13,IJ00021502,3178.28,ALTERNATIVE SYSTEMS PROTECTION, 
East Lindsey District Council,http://statistics.data.gov.uk/id/local-authority/32UC,Hsg Private Sector TL,Other Income,25/04/13,IJ00021470,-491.05,ANDREW WRISDALE BUILDING CONTRACTOR, 
East Lindsey District Council,http://statistics.data.gov.uk/id/local-authority/32UC,Hsg Private Sector TL,Grants and Contributions to Outside Bodies- No Service Recei,25/04/13,IJ00021470,5499.72,ANDREW WRISDALE BUILDING CONTRACTOR, 
East Lindsey District Council,http://statistics.data.gov.uk/id/local-authority/32UC,Hsg Private Sector TL,Other Income,25/04/13,IJ00021471,-548.45,ANDREW WRISDALE BUILDING CONTRACTOR, 
East Lindsey District Council,http://statistics.data.gov.uk/id/local-authority/32UC,Hsg Private Sector TL,Grants and Contributions to Outside Bodies- No Service Recei,25/04/13,IJ00021471,6142.62,ANDREW WRISDALE BUILDING CONTRACTOR, 
East Lindsey District Council,http://statistics.data.gov.uk/id/local-authority/32UC,Hsg Private Sector TL,Other Income,25/04/13,IJ00021474,-330.87,ANDREW WRISDALE BUILDING CONTRACTOR, 
East Lindsey District Council,http://statistics.data.gov.uk/id/local-authority/32UC,Hsg Private Sector TL,Grants and Contributions to Outside Bodies- No Service Recei,25/04/13,IJ00021474,3705.73,ANDREW WRISDALE BUILDING CONTRACTOR, 
East Lindsey District Council,http://statistics.data.gov.uk/id/local-authority/32UC,Enforcement Team Leader,Materials and Consumables,25/04/13,IJ00021362,2470.00,A C PROPERTY MAINTENANCE LTD, 
East Lindsey District Council,http://statistics.data.gov.uk/id/local-authority/32UC,Enforcement Team Leader,Materials and Consumables,25/04/13,IJ00021363,785.00,A C PROPERTY MAINTENANCE LTD, 
East Lindsey District Council,http://statistics.data.gov.uk/id/local-authority/32UC,Waste Services Manager,Materials and Consumables,25/04/13,IJ00021412,5437.40,GELPACK EXCELSIOR LTD, 
East Lindsey District Council,http://statistics.data.gov.uk/id/local-authority/32UC,Neighbourhood Services,Materials and Consumables,25/04/13,IJ00021412,5437.40,GELPACK EXCELSIOR LTD, 
East Lindsey District Council,http://statistics.data.gov.uk/id/local-authority/32UC,Neighbourhood Services,Materials and Consumables,25/04/13,IJ00021413,2969.40,GELPACK EXCELSIOR LTD, 
East Lindsey District Council,http://statistics.data.gov.uk/id/local-authority/32UC,Waste Services Manager,Materials and Consumables,25/04/13,IJ00021415,3393.00,GELPACK EXCELSIOR LTD, 
East Lindsey District Council,http://statistics.data.gov.uk/id/local-authority/32UC,Neighbourhood Services,Materials and Consumables,25/04/13,IJ00021415,1136.80,GELPACK EXCELSIOR LTD, 
East Lindsey District Council,http://statistics.data.gov.uk/id/local-authority/32UC,"Performance, Governance & Commissioning",Grants and Contributions to Outside Bodies- No Service Recei,25/04/13,IJ00021408,2000.00,Louth Education Community Interest Company, 
East Lindsey District Council,http://statistics.data.gov.uk/id/local-authority/32UC,Cultural & Related Services,Professional & Contractors Fees,25/04/13,IJ00021376,5120.95,THE MANAGEMENT CENTRE UK LTD, 
East Lindsey District Council,http://statistics.data.gov.uk/id/local-authority/32UC,Theatre Manager,Performers and Entertainers Fees,25/04/13,IJ00021283,2437.50,BEYOND THE BARRICADE LTD, 
East Lindsey District Council,http://statistics.data.gov.uk/id/local-authority/32UC,Theatre Manager,Performers and Entertainers Fees,25/04/13,IJ00021283,-210.00,BEYOND THE BARRICADE LTD, 
East Lindsey District Council,http://statistics.data.gov.uk/id/local-authority/32UC,Corporate Management,Staff Training Expenses,25/04/13,IJ00021417,1007.94,Janet M Beaumont Associates Ltd, 
East Lindsey District Council,http://statistics.data.gov.uk/id/local-authority/32UC,Collection Fund,Precept - Lincolnshire Police,29/04/13,IJ00021555,766123.57,LOCAL POLICE AUTHORITY FUND ACCOUNT, 
East Lindsey District Council,http://statistics.data.gov.uk/id/local-authority/32UC,Collection Fund,Precept- Lincolnshire County Council,29/04/13,IJ00021557,4612675.00,LINCOLNSHIRE COUNTY COUNCIL, 
East Lindsey District Council,http://statistics.data.gov.uk/id/local-authority/32UC,Theatre Manager,Sales - General,29/04/13,IJ00021528,20833.33,BILL KENWRIGHT LTD, 
